Workbook

Sheet CAMPEONES (hidden)
A2: CAMPEONATO DE EQUIPOS
C3: EQUIPO | D3: CAPITAN | E3: PUNTAJE | F3: JINETES
A4: 1 | B4: CAMPEÓN NACIONAL | C4: CEPSA AMAROK | D4: FELIPE PORTILLA | E4: 1628.897 | F4: RIBADENEIRA SOFIA | G4: RIBADENEIRA ARTURO | H4: CANDO MARIO | I4: URIBE CARLOS JOSE | J4: PORTILLA FELIPE | K4: QUIROZ ORLANDO
A5: 2 | B5: VICECAMPEÓN NACIONAL | C5: EKOS NEGOCIOS.COM 1 | D5: MAURICIO MURILLO | E5: 1604.299 | F5: RICARDO DUEÑAS | G5: MORILLO MAURICIO | H5: RUIZ ILIANA | I5: SERGIO MORILLO | J5: BRAUER MARIA FERNANDA
A6: 3 | C6: EQUINOCCIAL 1 | D6: BERNARDO DARQUEA | E6: 1349.716 | F6: JUAN JOSE RECALDE | G6: RAFAELLA DARQUEA | H6: BERNARDO DARQUEA | I6: KARINA NEUMANN | J6: DELGADO JUAN | K6: ANDRES DARQUEA
A8: CAMPEONATO NACIONAL DE JINETES ABIERTA (CHASQUI II)
C9: EQUIPO | D9: PUNTAJE
A10: 1 | B10: CAMPEÓN NACIONAL | C10: MORILLO MAURICIO | D10: 779.3716
A11: 2 | B11: VICECAMPEÓN NACIONAL | C11: RECALDE JUAN JOSE | D11: 762.553
A12: 3 | C12: WEEMAELS NATHALIE | D12: 590.998
A14: CAMPEONATO NACIONAL DE JINETES MASTER (CHASQUI II)
C15: EQUIPO | D15: PUNTAJE
A16: 1 | B16: CAMPEÓN NACIONAL | C16: ALMEIDA AYALA HECTOR | D16: 159.52
A17: 2 | B17: VICECAMPEÓN NACIONAL
A18: 3
A20: CAMPEONATO NACIONAL DE JINETES JUVENIL (CHASQUI II)
C21: EQUIPO | D21: PUNTAJE
A22: 1 | B22: CAMPEÓN NACIONAL | C22: MORENO NICOLAS | D22: 496.92
A23: 2 | B23: VICECAMPEÓN NACIONAL | C23: RIBADENEIRA SOFIA | D23: 488.24
A24: 3 | C24: MONROY MARIA FERNANDA | D24: 318.386
A26: CAMPEONATO DE BINOMIOS
B27: JINETE | C27: CABALLO | D27: PUNTAJE
A28: 1 | B28: MORILLO MAURICIO | C28: MISTERIO | D28: 779.3716
A29: 2 | B29: RECALDE JUAN JOSE | C29: BOMBON | D29: 762.553
A30: 3 | B30: RIBADENEIRA SOFIA | C30: AR FAISAN | D30: 486.24
A32: MEJOR CONDICIÓN FISICA
B33: CABALLO | C33: PROPIETARIO | D33: PUNTAJE
A34: 1 | B34: MISTERIO | C34: MAURICIO MORILLO | D34: 529.736
A35: 2 | B35: BOMBON | C35: JUAN JOSE RECALDE | D35: 525.2725
A36: 3 | B36: AR FAISAN | C36: RIBADENEIRA SOFIA | D36: 415.66
A38: CAMPEONATO DE CABALLOS ABIERTA (PESO MÍNIMO 75 KG)
B39: CABALLO | C39: PROPIETARIO | D39: PUNTAJE
A40: 1 | B40: MISTERIO | C40: MORILLO MAURICIO | D40: 779.3716
A41: 2 | B41: BOMBON | C41: RECALDE JUAN JOSE | D41: 762.553
A42: 3 | B42: CG ALLASKI | C42: WEEMAELS NATHALIE | D42: 590.998
A44: CAMPEONATO DE CABALLOS JUVENIL- MASTER (SIN PESO MÍNIMO)
B45: CABALLO | C45: PROPIETARIO | D45: PUNTAJE
A46: 1 | B46: DAMASCO | C46: MORENO NICOLAS | D46: 413.14
A47: 2 | B47: AR FAISAN | C47: RIBADENEIRA SOFIA | D47: 321.96
A48: 3 | B48: GITANILLO | C48: MONROY BAROJA MARIA | D48: 295.548
A50: CAMPEONATO JINETES ABIERTA CHASQUI I
B51: JINETE | C51: PUNTAJE
A52: 1 | B52: ILIANA RUIZ | C52: 361.675
A53: 2 | B53: ORLANDO QUIROZ | C53: 332.0412
A54: 3 | B54: RICARDO DUEÑAS | C54: 323.7641
A56: CAMPEONATO JINETES MASTER CHASQUI I
B57: JINETE | C57: PUNTAJE
A58: 1 | B58: GUSTAVO HIDALGO | C58: 366.048
A59: 2 | B59: EDUARDO MONROY | C59: 124.138
A60: 3 | B60: GALO RECALDE | C60: 82.7526
A62: CAMPEONATO JINETES JUVENIL CHASQUI I
B63: JINETE | C63: PUNTAJE
A64: 1 | B64: PEDRO JOSE GUARDERAS | C64: 271.98
A65: 2 | B65: PEDRO JOSE BACA | C65: 124.138
A66: 3 | B66: WRAY THOMAS | C66: 119.96
A69: CAMPEONATO PRUEBA PROMOCIONAL JINETES
B70: JINETE | C70: PUNTAJE
A71: 1 | B71: BELEN GUARDERAS | C71: 92.714
A72: 2 | B72: ANDRES AYALA | C72: 90.88
A73: 3 | B73: MOLESTINA NICOLAS | C73: 88.868
A75: CAMPEONATO INFANTIL JINETES
B76: JINETE | C76: PUNTAJE
A77: 1 | B77: JARAMILLO BENITO JOSE | C77: 175.9786
A78: 2 | B78: CHIRIBOGA ALFREDO | C78: 175.375
A79: 3 | B79: JARAMILLO MANUELA | C79: 162.7443

Sheet CAMPEONES (hidden)
B2: CAMPEONATO ECUATORIANO DE ENDURANCE | G2: CAMPEONATO NACIONAL DE ENDURANCE ECUADOR
B4: CATEGORÍA ELITE ABIERTA CHASQUI 2 | G4: CAMPEONATO DE EQUIPOS
D5: JINETE | E5: CABALLO | I5: EQUIPO | J5: CAPITAN | K5: PUNTAJE | L5: JINETES
B6: 1 | C6: CAMPEÓN NACIONAL | G6: 1 | H6: CAMPEÓN NACIONAL
B7: 2 | C7: VICECAMPEÓN NACIONAL | G7: 2 | H7: VICECAMPEÓN NACIONAL
B8: 3 | G8: 3
B10: CATEGORÍA ELITE JUVENIL CHASQUI 2 | G10: CATEGORÍA ELITE ABIERTA
D11: JINETE | E11: CABALLO | I11: JINETE | J11: PUNTAJE
B12: 1 | C12: CAMPEÓN NACIONAL | G12: 1 | H12: CAMPEÓN NACIONAL
B13: 2 | C13: VICECAMPEÓN NACIONAL | G13: 2 | H13: VICECAMPEÓN NACIONAL
B14: 3 | G14: 3
G15: 4
G16: 5
B18: CATEGORÍA ELITE ABIERTA CHASQUI 1 | G18: CATEGORÍA ELITE JUVENIL
D19: JINETE | E19: CABALLO | I19: JINETE | J19: PUNTAJE
B20: 1 | C20: CAMPEÓN NACIONAL | G20: 1 | H20: CAMPEÓN NACIONAL
B21: 2 | C21: VICECAMPEÓN NACIONAL | G21: 2 | H21: VICECAMPEÓN NACIONAL
B22: 3 | G22: 3
G23: 4
G24: 5
B26: CATEGORÍA ELITE JUVENIL CHASQUI 1 | G26: CATEGORÍA ELITE CABALLOS
D27: JINETE | E27: CABALLO | I27: JINETE | J27: JINETE/DUEÑO | K27: PUNTAJE
B28: 1 | C28: CAMPEÓN NACIONAL | G28: 1 | H28: CAMPEÓN NACIONAL
B29: 2 | C29: VICECAMPEÓN NACIONAL | G29: 2 | H29: VICECAMPEÓN NACIONAL
B30: 3 | G30: 3
G31: 4
G32: 5
G34: CATEGORÍA NOVICIOS ABIERTA
I35: JINETE | J35: PUNTAJE
G36: 1 | H36: CAMPEÓN NACIONAL
G37: 2 | H37: VICECAMPEÓN NACIONAL
G38: 3
G39: 4
G40: 5
G42: CATEGORÍA NOVICIOS JUVENIL
I43: JINETE | J43: PUNTAJE
G44: 1 | H44: CAMPEÓN NACIONAL
G45: 2 | H45: VICECAMPEÓN NACIONAL
G46: 3
G47: 4
G48: 5
G50: CATEGORÍA NOVICIOS MENORES
I51: JINETE | J51: PUNTAJE
G52: 1 | H52: CAMPEÓN NACIONAL
G53: 2 | H53: VICECAMPEÓN NACIONAL
G54: 3
G55: 4
G56: 5
G58: CATEGORÍA NOVICIOS CABALLOS
I59: JINETE | J59: JINETE/DUEÑO | K59: PUNTAJE
G60: 1 | H60: CAMPEÓN NACIONAL
G61: 2 | H61: VICECAMPEÓN NACIONAL
G62: 3
G63: 4
G64: 5
G66: CATEGORÍA INFANTIL
I67: JINETE | J67: PUNTAJE
G68: 1 | H68: CAMPEÓN NACIONAL
G69: 2 | H69: VICECAMPEÓN NACIONAL
G70: 3
G71: 4
G72: 5
G74: CATEGORÍA BINOMIOS
I75: JINETE | J75: CABALLO | K75: PUNTAJE
G76: 1 | H76: CAMPEÓN NACIONAL
G77: 2 | H77: VICECAMPEÓN NACIONAL
G78: 3
G79: 4
G80: 5
G82: MEJOR CONDICIÓN ABIERTA
I83: CABALLO | J83: PUNTAJE
G84: 1 | H84: CAMPEÓN NACIONAL
G85: 2 | H85: VICECAMPEÓN NACIONAL
G86: 3
G87: 4
G88: 5
G90: MEJOR CONDICIÓN JUVENIL
I91: JINETE | J91: PUNTAJE
G92: 1 | H92: CAMPEÓN NACIONAL
G93: 2 | H93: VICECAMPEÓN NACIONAL
G94: 3
G95: 4
G96: 5
G98: SUPER CABALLO
I99: JINETE | J99: JINETE/DUEÑO | K99: PUNTAJE
G100: 1 | H100: CAMPEÓN NACIONAL
G101: 2 | H101: VICECAMPEÓN NACIONAL
G102: 3
G103: 4
G104: 5

Sheet AL GALOPE (hidden)
B2: AL GALOPE: CAMPEONATO DE ENDURANCE ECUADOR 2015
E4: EQUIPO AL GALOPE TRICAMPEÓN NACIONAL
E5: EQUIPO AL GALOPE 1 TERCER LUGAR
D7: PABLO VINTIMILLA & BIANCA | H7: MARÍA CONSUELO VELEZ & KAFIR HA
D8: VICECAMPEONES NACIONALES DE ENDURANCE | H8: TERCEROS EN CAMPEONATO NACIONAL
B10: JOSÉ DANIEL ANDRADE | E10: BERNARDA GONZÁLEZ | H10: JAIME BURBANO VILLAVICENCIO | K10: HECTOR ALMEIDA & CENTAURO
B11: CAMPEON JUVENIL RANKING NACIONAL | E11: VICECAMPEONA JUVENIL RANKING NACIONAL | H11: VICECAMPEON NACIONAL CHASQUI 2 | K11: SUPER CHASQUI 1 BINOMIOS (1000 Km)
B13: BERNARDA Y JOSÉ DANIEL | E13: HÉCTOR ALMEIDA PARDO | H13: JOSÉ DANIEL ANDRADE | K13: HECTOR ALMEIDA AYALA
B14: INTERVIENIERON EN EL CAMPEONATO MUNDIAL JUVENIL | E14: VICECAMPEÓN PROMOCIONAL ABIERTA | H14: SUPER CHASQUI 2 (2000 K) | K14: SUPER CHASQUI 2 (2000 K)
B16: ALEXADER GÓMEZ | E16: BERNARDA GONZÁLEZ | H16: MAURICIO NOBOA | K16: OSWALDO KOPPEL
B17: SUPER CHASQUI 1 CABALLOS (1000 Km) | E17: SUPER CHASQUI 1 (1000 Km) | H17: SUPER CHASQUI 1 (1000 Km) | K17: SUPER CHASQUI 1 (1000 Km)
B19: ALEXADER GÓMEZ | E19: PV RIGUEL / DE PABLO | H19: CENTAURO | K19: BIANCA / DE PABLO
B20: CLASIFICADO AL MUNDIAL JUVENIL 2015 | E20: VICECAMPEON DE RANKING NACIONAL | H20: SUPER CHASQUI 1 CABALLOS (1000 Km) | K20: CUARTA EN RANKING NACIONAL
D22: PABLO, MARÍA CONSUELO, HÉCTOR | H22: BERNARDA, JOSÉ DANIEL, ALEXANDER
D23: REPRESENTANTES NACIONALES AL MUNDIAL DUBAI 2016 | H23: REPRESENTANTES NACIONALES JUVENILES A PRUEBAS INTERNCIONALES

Sheet SUPER CHASQUI
C2: PREMIO SUPER CHASQUI DE ENDURANCE
B4: SUPER CHASQUI 3 JINETES
C5: JINETE
B6: 1
B7: 2
B8: 3
B10: SUPER CHASQUI 3 CABALLOS
C11: JINETE | D11: CABALLO
B12: 1
B13: 2
B14: 3
B16: SUPER CHASQUI 3 BINOMIOS
C17: JINETE | D17: CABALLO
B18: 1 | C18: PORTILLA FELIPE | D18: AR ALBATSYN
B19: 2 | C19: BURBANO JAIME | D19: CENTAURO
B20: 3
B22: SUPER CHASQUI 2 JINETES (2000 Km)
C23: JINETE | D23: KILOMETRAJE
C24: RIBADENEIRA SOFIA | D24: 2766
C25: WEEMAELS NATHALIE | D25: 2528
C26: ALMEIDA AYALA HECTOR | D26: 2273
C27: NEUMANN KARINA | D27: 2108
C28: ANDRADE JOSE DANIEL | D28: 2084
C29: LETORT DUEÑAS BERNARDA | D29: 2065
B31: SUPER CHASQUI 2 CABALLOS (2000 Km)
C32: JINETE | D32: KILOMETRAJE
B33: 1
B34: 2
B35: 3
B37: SUPER CHASQUI 2 BINOMIOS (2000 Km)
C38: JINETE | D38: KILOMETRAJE
B39: 1
B40: 2
B41: 3
B43: SUPER CHASQUI 1 JINETES (1000 Km)
C44: JINETE | D44: KILOMETRAJE
B45: 1 | C45: RIBADENEIRA ARTURO | D45: 1987
B46: 2 | C46: DARQUEA RAFAELA | D46: 1980
B47: 3 | C47: RECALDE JUAN JOSE | D47: 1967
B48: 4 | C48: GUARDERAS BARAHONA SEBASTIAN | D48: 1856
B49: 5 | C49: GOMEZ MICHILENA ALEXANDER | D49: 1837
B50: 6 | C50: MORILLO MAURICIO | D50: 1788
B51: 7 | C51: GONZALEZ BERNARDA | D51: 1649
B52: 8 | C52: MORENO CORDOVEZ DANIELA | D52: 1496
B53: 9 | C53: WRAY VINUEZA MATEO | D53: 1474
B54: 10 | C54: MONROY BAROJA MARIA FERNANDA | D54: 1444
B55: 11 | C55: DARQUEA BERNARDO | D55: 1443
B56: 12 | C56: NOBOA MAURICIO | D56: 1403
B57: 13 | C57: SERRANO VALLEJO FELIPE | D57: 1378
B58: 14 | C58: MORILLO SERGIO | D58: 1367
B59: 15 | C59: MORABOWEN CESAR | D59: 1297
B60: 16 | C60: KOPPEL OSWALDO | D60: 1284
B61: 17 | C61: CORNEJO BURNEO MANUEL | D61: 1252
B62: 18 | C62: CANDO MARIO | D62: 1003
B63: 19
B64: 20
B66: SUPER CHASQUI 1 CABALLOS (1000 Km)
C67: JINETE | D67: PROPIETARIO/JINETE | E67: KILOMETRAJE
B68: 1 | C68: AR FAISAN | D68: ARTURO RIBADENEIRA | E68: 1994
B69: 2 | C69: CENTAURO | D69: HECTOR ALMEIDA | E69: 1792
B70: 3 | C70: FHARA CONEJA | D70: DARQUEA BERNARDO | E70: 1727
B71: 4 | C71: FRODO | D71: RIBADENEIRA ARTURO | E71: 1526
B72: 5 | C72: MISTERIO | D72: MORILLO MAURICIO | E72: 1491
B73: 6 | C73: BOM BOM | D73: JUAN JOSE RECALDE | E73: 1369
B74: 7 | C74: CG ALLASKI | D74: WEEMAELS NATHALIE | E74: 1364
B75: 8 | C75: QUITA PENAS | D75: MORILLO MAURICIO | E75: 1339
B76: 9 | C76: WISKY | D76: MAURICIO NOBOA | E76: 1016
B77: 10 | C77: TRUENO | D77: DARQUEA BERNARDO | E77: 1011
B78: 11
B79: 12
B80: 13
B81: 14
B82: 15
B83: 16
B84: 17
B85: 18
B86: 19
B87: 20
B88: 21
B89: 22
B90: 23
B91: 24
B92: 25
B94: SUPER CHASQUI 1 BINOMIOS (1000 Km)
C95: JINETE | D95: CABALLO | E95: KILOMETRAJE
B96: 1 | C96: HECTOR ALMEIDA | D96: CENTAURO | E96: 1546
B97: 2 | C97: WEEMAELS NATHALIE | D97: CG ALLASKI | E97: 1484
B98: 3 | C98: MORILLO MAURICIO | D98: MISTERIO | E98: 1375
B99: 4 | C99: DARQUEA BERNARDO | D99: FHARA CONEJA | E99: 1362
B100: 5 | C100: RIBADENEIRA SOFIA | D100: AR FAISAN | E100: 1181
B101: 6
B102: 7
B103: 8
B104: 9
B105: 10
B106: 11
B107: 12
B108: 13

Sheet RANKING 2015
A1: RANKING NACIONAL DE ENDURANCE ECUADOR 2015
A3: CAMPEONATO DE EQUIPOS
C4: EQUIPO | D4: CAPITAN | E4: PUNTAJE | F4: JINETES
A5: 1 | B5: CAMPEÓN NACIONAL | C5: =+EQUIPOS!C8 -> AL GALOPE | D5: =+EQUIPOS!D8 -> HECTOR ALMEIDA AYALA | E5: =+EQUIPOS!U8 -> 2483.067 | F5: =+EQUIPOS!E8 -> BERNARDA GONZÁLEZ | G5: =+EQUIPOS!F8 -> MARÍA CLAUDIA LOYOLA | H5: =+EQUIPOS!G8 -> MAURICIO NOBOA | I5: =+EQUIPOS!H8 -> ANDRADE JOSE DANIEL | J5: =+EQUIPOS!I8 -> ALMEIDA AYALA HECTOR | K5: =+EQUIPOS!J8 -> ALEXANDER GÓMEZ
A6: 2 | B6: VICECAMPEÓN NACIONAL | C6: =+EQUIPOS!C9 -> SELECT ECUADOR 1 | D6: =+EQUIPOS!D9 -> JOSÉ LETORT | E6: =+EQUIPOS!U9 -> 2074.374 | F6: =+EQUIPOS!E9 -> LETORT DUEÑAS JOSE IGNACIO | G6: =+EQUIPOS!F9 -> SERRANO ARMANDO JOSE | H6: =+EQUIPOS!G9 -> BERNARDA LETORT | I6: =+EQUIPOS!H9 -> JOSÉ LETORT | J6: =+EQUIPOS!I9 -> MANUELA JARAMILLO | K6: =+EQUIPOS!J9 -> BENITO JOSÉ JARAMILLO
A7: 3 | C7: =+EQUIPOS!C10 -> AL GALOPE 1 | D7: =+EQUIPOS!D10 -> OSWALDO KOPPEL | E7: =+EQUIPOS!U10 -> 2070.232 | F7: =+EQUIPOS!E10 -> MALO TORAL DAVID | G7: =+EQUIPOS!F10 -> VINTIMILLA SERRANO PABLO XAVIER | H7: =+EQUIPOS!G10 -> VELEZ MENA MARIA CONSUELO | I7: =+EQUIPOS!H10 -> BURBANO JAIME | J7: =+EQUIPOS!I10 -> OSWALDO KOPPEL | K7: =+EQUIPOS!J10 -> HÉCTOR ALMEIDA PARDO
A9: CATEGORÍA ELITE ABIERTA
C10: JINETE | D10: PUNTAJE
A11: 1 | B11: CAMPEÓN NACIONAL | C11: =+'ELITE ABIERTA'!D8 -> RIBADENEIRA ARTURO | D11: =+'ELITE ABIERTA'!O8 -> 1101.78
A12: 2 | B12: VICECAMPEÓN NACIONAL | C12: =+'ELITE ABIERTA'!D9 -> VINTIMILLA PABLO | D12: =+'ELITE ABIERTA'!O9 -> 935.99
A13: 3 | C13: =+'ELITE ABIERTA'!D10 -> MORABOWEN CESAR | D13: =+'ELITE ABIERTA'!O10 -> 775.181
A14: 4 | C14: =+'ELITE ABIERTA'!D11 -> PORTILLA FELIPE | D14: =+'ELITE ABIERTA'!O11 -> 719.034
A15: 5 | C15: =+'ELITE ABIERTA'!D12 -> LOZADA ARMANDO | D15: =+'ELITE ABIERTA'!O12 -> 658.7
A17: CATEGORÍA ELITE JUVENIL
C18: JINETE | D18: PUNTAJE
A19: 1 | B19: CAMPEÓN NACIONAL | C19: =+'ELITE JUVENIL'!D8 -> ANDRADE JOSE DANIEL | D19: =+'ELITE JUVENIL'!O8 -> 1138.24
A20: 2 | B20: VICECAMPEÓN NACIONAL | C20: =+'ELITE JUVENIL'!D9 -> GONZALEZ BERNARDA | D20: =+'ELITE JUVENIL'!O9 -> 718.838
A21: 3 | C21: =+'ELITE JUVENIL'!D10 -> LETORT DUEÑAS JOSE IGNACIO | D21: =+'ELITE JUVENIL'!O10 -> 659.6
A22: 4 | C22: =+'ELITE JUVENIL'!D11 -> DUBACH CAROLINA | D22: =+'ELITE JUVENIL'!O11 -> 636.136
A23: 5 | C23: =+'ELITE JUVENIL'!D12 -> LETORT DUEÑAS BERNARDA | D23: =+'ELITE JUVENIL'!O12 -> 542.73
A25: CATEGORÍA ELITE MENORES
C26: JINETE | D26: PUNTAJE
A27: 1 | B27: CAMPEÓN NACIONAL | C27: =+'ELITE MENORES'!D8 -> JARAMILLO BENITO | D27: =+'ELITE MENORES'!O8 -> 524.26
A29: CATEGORÍA ELITE CABALLOS
C30: JINETE | D30: JINETE/DUEÑO | E30: PUNTAJE
A31: 1 | B31: CAMPEÓN NACIONAL | C31: =+'ELITE CABALLOS'!D8 -> FRODO | D31: =+'ELITE CABALLOS'!E8 -> ARTURO RIBADENEIRA | E31: =+'ELITE CABALLOS'!P8 -> 602.2
A32: 2 | B32: VICECAMPEÓN NACIONAL | C32: =+'ELITE CABALLOS'!D9 -> PV RIGUEL | D32: =+'ELITE CABALLOS'!E9 -> PABLO VINTIMILLA | E32: =+'ELITE CABALLOS'!P9 -> 558.25
A33: 3 | C33: =+'ELITE CABALLOS'!D10 -> ZT SATFANTDU | D33: =+'ELITE CABALLOS'!E10 -> ARTURO RIBADENEIRA | E33: =+'ELITE CABALLOS'!P10 -> 546.676
A34: 4 | C34: =+'ELITE CABALLOS'!D11 -> BIANCA | D34: =+'ELITE CABALLOS'!E11 -> PABLO VINTIMILLA | E34: =+'ELITE CABALLOS'!P11 -> 545.72
A35: 5 | C35: =+'ELITE CABALLOS'!D12 -> SHAKIRA | D35: =+'ELITE CABALLOS'!E12 -> LETORT DUEÑAS JOSE IGNACIO | E35: =+'ELITE CABALLOS'!P12 -> 498.8
A37: CATEGORÍA AMATEUR ABIERTA
C38: JINETE | D38: PUNTAJE
A39: 1 | B39: CAMPEÓN NACIONAL | C39: =+'AMATEUR ABIERTA'!D8 -> ESPINOZA JUAN SEBASTIAN | D39: =+'AMATEUR ABIERTA'!O8 -> 592.55
A40: 2 | B40: VICECAMPEÓN NACIONAL | C40: =+'AMATEUR ABIERTA'!D9 -> FALCONI FRANCISCO | D40: =+'AMATEUR ABIERTA'!O9 -> 389.502
A41: 3 | C41: =+'AMATEUR ABIERTA'!D10 -> ALVEAR JUAN CARLOS | D41: =+'AMATEUR ABIERTA'!O10 -> 308.656
A42: 4 | C42: =+'AMATEUR ABIERTA'!D11 -> SAMPER ALVARO | D42: =+'AMATEUR ABIERTA'!O11 -> 306.36
A43: 5 | C43: =+'AMATEUR ABIERTA'!D12 -> MOYA MIGUEL ANGEL | D43: =+'AMATEUR ABIERTA'!O12 -> 276.366
A45: CATEGORÍA AMATEUR JUVENIL
C46: JINETE | D46: PUNTAJE
A47: 1 | B47: CAMPEÓN NACIONAL | C47: =+'AMATEUR JUVENIL'!D8 -> MASAPANTA KEVIN | D47: =+'AMATEUR JUVENIL'!O8 -> 243.5
A48: 2 | B48: VICECAMPEÓN NACIONAL | C48: =+'AMATEUR JUVENIL'!D9 -> DARQUEA ANA MARIA | D48: =+'AMATEUR JUVENIL'!O9 -> 175.08
A49: 3 | C49: =+'AMATEUR JUVENIL'!D10 -> HURTADO HECTOR | D49: =+'AMATEUR JUVENIL'!O10 -> 171.52
A50: 4 | C50: =+'AMATEUR JUVENIL'!D11 -> BERREZUETA DELGADO PABLO SANTIAGO | D50: =+'AMATEUR JUVENIL'!O11 -> 170
A51: 5 | C51: =+'AMATEUR JUVENIL'!D12 -> DAVALOS JOAQUINA | D51: =+'AMATEUR JUVENIL'!O12 -> 168.2
A53: CATEGORÍA AMATEUR MENORES
C54: JINETE | D54: PUNTAJE
A55: 1 | B55: CAMPEÓN NACIONAL | C55: =+'AMATEUR MENORES'!D8 -> TORRES UGALDE RAFAEL ESTEBAN | D55: =+'AMATEUR MENORES'!O8 -> 223.48
A56: 2 | B56: VICECAMPEÓN NACIONAL | C56: =+'AMATEUR MENORES'!D9 -> TORRES GIORDANO ALEJANDRO | D56: =+'AMATEUR MENORES'!O9 -> 181.2
A57: 3 | C57: =+'AMATEUR MENORES'!D10 -> MORABOWEN MOSQUERA CESAR | D57: =+'AMATEUR MENORES'!O10 -> 166.486
A58: 4 | C58: =+'AMATEUR MENORES'!D11 -> JIJON SOFIA | D58: =+'AMATEUR MENORES'!O11 -> 164.28
A59: 5 | C59: =+'AMATEUR MENORES'!D12 -> MALO TOMAS | D59: =+'AMATEUR MENORES'!O12 -> 160.4
A61: CATEGORÍA NOVICIOS CABALLOS
C62: JINETE | D62: JINETE/DUEÑO | E62: PUNTAJE
A63: 1 | B63: CAMPEÓN NACIONAL | C63: =+'CABALLOS NOVICIOS'!D8 -> KALA | D63: ESPINOZA JUAN SEBASTIAN | E63: =+'CABALLOS NOVICIOS'!P8 -> 592.55
A64: 2 | B64: VICECAMPEÓN NACIONAL | C64: =+'CABALLOS NOVICIOS'!D9 -> AS GITANA | D64: SERRANO ARMANDO | E64: =+'CABALLOS NOVICIOS'!P9 -> 426.256
A65: 3 | C65: =+'CABALLOS NOVICIOS'!D10 -> CARRUZO | D65: SAMPER ALVARO | E65: =+'CABALLOS NOVICIOS'!P10 -> 306.36
A66: 4 | C66: =+'CABALLOS NOVICIOS'!D11 -> CALEÑA CMB | D66: ULLOA GORDON FERNANDO | E66: =+'CABALLOS NOVICIOS'!P11 -> 302.546
A67: 5 | C67: =+'CABALLOS NOVICIOS'!D12 -> AR SEGOVIA | D67: RIBADENEIRA ARTURO | E67: =+'CABALLOS NOVICIOS'!P12 -> 299.78
A70: CATEGORÍA BINOMIOS ABIERTA
C71: JINETE | D71: CABALLO | E71: PUNTAJE
A72: 1 | B72: CAMPEÓN NACIONAL | C72: =+'BINOMIOS ABIERTA'!D8 -> MORABOWEN CESAR | D72: =+'BINOMIOS ABIERTA'!F8 -> SERENATA CMB | E72: =+'BINOMIOS ABIERTA'!Q8 -> 629.705
A73: 2 | B73: VICECAMPEÓN NACIONAL | C73: =+'BINOMIOS ABIERTA'!D9 -> PORTILLA FELIPE | D73: =+'BINOMIOS ABIERTA'!F9 -> AR ALBATSYN | E73: =+'BINOMIOS ABIERTA'!Q9 -> 617.73
A74: 3 | C74: =+'BINOMIOS ABIERTA'!D10 -> ESPINOZA JUAN SEBASTIAN | D74: =+'BINOMIOS ABIERTA'!F10 -> KALA | E74: =+'BINOMIOS ABIERTA'!Q10 -> 592.55
A75: 4 | C75: =+'BINOMIOS ABIERTA'!D11 -> MANCHENO GALO PATRICIO | D75: =+'BINOMIOS ABIERTA'!F11 -> SICOTICO | E75: =+'BINOMIOS ABIERTA'!Q11 -> 572.513
A76: 5 | C76: =+'BINOMIOS ABIERTA'!D12 -> RIBADENEIRA ARTURO | D76: =+'BINOMIOS ABIERTA'!F12 -> FRODO | E76: =+'BINOMIOS ABIERTA'!Q12 -> 481.6
A78: CATEGORÍA BINOMIOS LIVIANOS
C79: JINETE | D79: CABALLO | E79: PUNTAJE
A80: 1 | B80: CAMPEÓN NACIONAL | C80: =+'BINOMIOS LIVIANOS'!D8 -> LETORT DUEÑAS JOSE IGNACIO | D80: =+'BINOMIOS LIVIANOS'!F8 -> SHAKIRA | E80: =+'BINOMIOS LIVIANOS'!Q8 -> 659.6
A81: 2 | B81: VICECAMPEÓN NACIONAL | C81: =+'BINOMIOS LIVIANOS'!D9 -> LETORT DUEÑAS BERNARDA | D81: =+'BINOMIOS LIVIANOS'!F9 -> AMARETO | E81: =+'BINOMIOS LIVIANOS'!Q9 -> 542.73
A82: 3 | C82: =+'BINOMIOS LIVIANOS'!D10 -> ANDRADE JOSE DANIEL | D82: =+'BINOMIOS LIVIANOS'!F10 -> JUPITER | E82: =+'BINOMIOS LIVIANOS'!Q10 -> 487.44
A83: 4 | C83: =+'BINOMIOS LIVIANOS'!D11 -> GOMEZ ALEXANDER | D83: =+'BINOMIOS LIVIANOS'!F11 -> FUERTE | E83: =+'BINOMIOS LIVIANOS'!Q11 -> 459.629
A84: 5 | C84: =+'BINOMIOS LIVIANOS'!D12 -> MORILLO SERGIO | D84: =+'BINOMIOS LIVIANOS'!F12 -> QUITA PENAS | E84: =+'BINOMIOS LIVIANOS'!Q12 -> 413.82
A86: CATEGORÍA PROMOCIONAL ABIERTA
C87: JINETE | D87: PUNTAJE
A88: 1 | B88: CAMPEÓN NACIONAL | C88: =+'PR ABIERTA'!D8 -> CASTILLO DIEGO | D88: =+'PR ABIERTA'!O8 -> 328.9
A89: 2 | B89: VICECAMPEÓN NACIONAL | C89: =+'PR ABIERTA'!D9 -> ALMEIDA PARDO HECTOR | D89: =+'PR ABIERTA'!O9 -> 161.53
A90: 3 | C90: =+'PR ABIERTA'!D10 -> LEPPERT MISHELL | D90: =+'PR ABIERTA'!O10 -> 142.97
A91: 4 | C91: =+'PR ABIERTA'!D11 -> MONCAYO DANILO | D91: =+'PR ABIERTA'!O11 -> 129.74
A92: 5 | C92: =+'PR ABIERTA'!D12 -> CANGAS GUILLERMO | D92: =+'PR ABIERTA'!O12 -> 117.7
A94: CATEGORÍA PROMOCIONAL JUVENIL
C95: JINETE | D95: PUNTAJE
A96: 1 | B96: CAMPEÓN NACIONAL | C96: =+'PR JUVENIL'!D8 -> AYMARA LEON SANDRO | D96: =+'PR JUVENIL'!O8 -> 175.32
A97: 2 | B97: VICECAMPEÓN NACIONAL | C97: =+'PR JUVENIL'!D9 -> BEATE VARGAS PEDRO | D97: =+'PR JUVENIL'!O9 -> 174.6
A98: 3 | C98: =+'PR JUVENIL'!D10 -> NAVARRETE RUIZ BRAYAN | D98: =+'PR JUVENIL'!O10 -> 122.34
A99: 4 | C99: =+'PR JUVENIL'!D11 -> VILLAMARIN ANDRES | D99: =+'PR JUVENIL'!O11 -> 89.39
A100: 5 | C100: =+'PR JUVENIL'!D12 -> JIJON IGNACIO | D100: =+'PR JUVENIL'!O12 -> 83.41
A102: CATEGORÍA PROMOCIONAL MENORES
C103: JINETE | D103: PUNTAJE
A104: 1 | B104: CAMPEÓN NACIONAL | C104: =+'PR MENORES'!D8 -> BEATE VARGAS MANUELA | D104: =+'PR MENORES'!O8 -> 174.6
A105: 2 | B105: VICECAMPEÓN NACIONAL | C105: =+'PR MENORES'!D9 -> CORREA JUAN MARTIN | D105: =+'PR MENORES'!O9 -> 135.08
A106: 3 | C106: =+'PR MENORES'!D10 -> TAPIA RUBEN | D106: =+'PR MENORES'!O10 -> 48
A107: 4
A108: 5
A110: CATEGORÍA PROMOCIONAL INFANTIL
C111: JINETE | D111: PUNTAJE
A112: 1 | B112: CAMPEÓN NACIONAL | C112: =+'PR INFANTIL'!D8 -> JARAMILLO SAMUEL | D112: =+'PR INFANTIL'!O8 -> 193.42
A113: 2 | B113: VICECAMPEÓN NACIONAL | C113: =+'PR INFANTIL'!D9 -> DONOSO JULIAN | D113: =+'PR INFANTIL'!O9 -> 93
A114: 3 | C114: =+'PR INFANTIL'!D10 -> SALTIVERI ALEJANDRA | D114: =+'PR INFANTIL'!O10 -> 51.2
A115: 4 | C115: =+'PR INFANTIL'!D11 -> DAVALOS REBECA | D115: =+'PR INFANTIL'!O11 -> 42.75
A116: 5
A118: CATEGORÍA PROMOCIONAL ADULTO/MENOR
C119: MENOR | D119: ADULTOS | E119: PUNTAJE
A120: 1 | B120: CAMPEÓN NACIONAL | C120: =+'PR ADULTO-MENOR'!C8 -> RAMIREZ RAFAEL | D120: =+'PR ADULTO-MENOR'!D8 -> MORENO GABRIEL, RAMIREZ FABRICIO | E120: =+'PR ADULTO-MENOR'!O8 -> 149.06
A121: 2 | B121: VICECAMPEÓN NACIONAL | C121: =+'PR ADULTO-MENOR'!C9 -> DARQUEA APOLO EMILIO | D121: =+'PR ADULTO-MENOR'!D9 -> MASAPANTA FABIAN, DARQUEA BERNARDO, DARQUEA RAFAELA | E121: =+'PR ADULTO-MENOR'!O9 -> 106.186
A122: 3 | C122: =+'PR ADULTO-MENOR'!C10 -> BARAHONA MARIA EMILIA | D122: =+'PR ADULTO-MENOR'!D10 -> BARAHONA ANDRES | E122: =+'PR ADULTO-MENOR'!O10 -> 89.84
A123: 4 | C123: =+'PR ADULTO-MENOR'!C11 -> JARAMILLO SAMUEL | D123: =+'PR ADULTO-MENOR'!D11 -> JARAMILLO BENITO | E123: =+'PR ADULTO-MENOR'!O11 -> 51.2
A124: 5 | C124: =+'PR ADULTO-MENOR'!C12 -> MORABOWEN MOSQUERA CESAR | D124: =+'PR ADULTO-MENOR'!D12 -> SANTOS MICHAEL | E124: =+'PR ADULTO-MENOR'!O12 -> 26.733

Sheet CAMPEONES 2015
B2: CAMPEONATO ECUATORIANO DE ENDURANCE
B4: CATEGORÍA ELITE ABIERTA CHASQUI 3
D5: JINETE | E5: CABALLO
B6: 1 | C6: CAMPEÓN NACIONAL | D6: RIBADENEIRA ARTURO | E6: ANGOSTURA FRODO
B7: 2 | C7: VICECAMPEÓN NACIONAL | D7: VINTIMILLA PABLO | E7: BIANCA
B8: 3 | D8: VELEZ MENA MARIA CONSUELO | E8: KAFIR HA
B10: CATEGORÍA ELITE JUVENIL CHASQUI 3
D11: JINETE | E11: CABALLO
B12: 1 | C12: CAMPEÓN NACIONAL
B13: 2 | C13: VICECAMPEÓN NACIONAL
B14: 3
B16: CATEGORÍA ELITE ABIERTA CHASQUI 2
D17: JINETE | E17: CABALLO
B18: 1 | C18: CAMPEÓN NACIONAL | D18: PORTILLA FELIPE | E18: AR ALBATSYN
B19: 2 | C19: VICECAMPEÓN NACIONAL | D19: BURBANO JAIME | E19: CENTAURO
B20: 3
B22: CATEGORÍA ELITE JUVENIL CHASQUI 2
D23: JINETE | E23: CABALLO
B24: 1 | C24: CAMPEÓN NACIONAL | D24: LETORT JOSE IGNACIO | E24: SHAKIRA
B25: 2 | C25: VICECAMPEÓN NACIONAL | D25: LETORT BERNARDA | E25: AMARETO
B26: 3
B28: CATEGORÍA ELITE ABIERTA CHASQUI 1
D29: JINETE | E29: CABALLO
B30: 1 | C30: CAMPEÓN NACIONAL | D30: FALCONI FRANCISCO | E30: DIAMANTE
B31: 2 | C31: VICECAMPEÓN NACIONAL | D31: MOYA MIGUEL | E31: GS RASHID
B32: 3
B34: CATEGORÍA ELITE JUVENIL CHASQUI 1
D35: JINETE | E35: CABALLO
B36: 1 | C36: CAMPEÓN NACIONAL
B37: 2 | C37: VICECAMPEÓN NACIONAL
B38: 3

Sheet EQUIPOS
B2: PUNTAJE ACUMULADO
B3: EQUIPOS
B5: EQUIPOS | K5: PUNTAJES
K6: 2012
C7: EQUIPO | D7: CAPITAN | E7: JINETES | K7: I CHONE | L7: II CHONE | M7: III CHONE | N7: IV CHONE | O7: V CHONE | P7: VI CHONE | Q7: VII CHONE | R7: VIII CHONE | S7: IX CHONE | T7: X CHONE | U7: ACUMULADO
B8: 1 | C8: AL GALOPE | D8: HECTOR ALMEIDA AYALA | E8: BERNARDA GONZÁLEZ | F8: MARÍA CLAUDIA LOYOLA | G8: MAURICIO NOBOA | H8: ANDRADE JOSE DANIEL | I8: ALMEIDA AYALA HECTOR | J8: ALEXANDER GÓMEZ | K8: 418.4 | N8: 624 | O8: 572.227 | P8: 478.5 | S8: 389.94 | U8: =SUM(K8:T8) -> 2483.067
B9: 2 | C9: SELECT ECUADOR 1 | D9: JOSÉ LETORT | E9: LETORT DUEÑAS JOSE IGNACIO | F9: SERRANO ARMANDO JOSE | G9: BERNARDA LETORT | H9: JOSÉ LETORT | I9: MANUELA JARAMILLO | J9: BENITO JOSÉ JARAMILLO | L9: 393.96 | O9: 405.886 | Q9: 329.158 | S9: 466.32 | T9: 479.05 | U9: 2074.374
B10: 3 | C10: AL GALOPE 1 | D10: OSWALDO KOPPEL | E10: MALO TORAL DAVID | F10: VINTIMILLA SERRANO PABLO XAVIER | G10: VELEZ MENA MARIA CONSUELO | H10: BURBANO JAIME | I10: OSWALDO KOPPEL | J10: HÉCTOR ALMEIDA PARDO | L10: 412.452 | N10: 576 | P10: 486.75 | T10: 595.03 | U10: 2070.232 | AN10: =+$U$8-U9 -> 408.693 | AO10: =VLOOKUP(B10,#REF!,3,FALSE) -> 
B11: 4 | C11: Cepsa Amaro de Cachafaz | D11: RIBADENEIRA ARTURO | E11: RIBADENEIRA ARTURO | F11: PORTILLA FELIPE | G11: DUBACH CAROLINA | H11: PAEZ JOSE | I11: RIBADENEIRA SANTIAGO | J11: SOFÍA RIBADENEIRA | L11: 374.664 | M11: 571.5 | S11: 377.88 | T11: 648.69 | U11: 1972.734
B12: 5 | C12: Ekosnegocios.com | D12: MAURICIO MORILLO | E12: NATHALIE WEEMAELS | F12: MANUEL CORNEJO | G12: SERGIO MORILLO | H12: MAURICIO MORILLO | O12: 490.8 | Q12: 237.06 | S12: 428.13 | U12: 1155.99
B13: 6 | C13: EQUINOCCIAL 1 | D13: DARQUE BERNARDO | E13: GUARDERAS BARAHONA SEBASTIAN | F13: DARQUEA RICARDO | G13: GUARDERAS JOSE GABRIEL | H13: RECALDE JUAN JOSE | I13: SERRANO VALLEJO FELIPE | J13: MASAPANTA KEVIN | L13: 250.45 | O13: 472.99 | S13: 261.3 | U13: 984.74
B14: 7 | C14: Hacienda Hato Verde | D14: MORABOWEN CESAR | E14: MORABOWEN CESAR | F14: MORABOWEN MOSQUERA CESAR | G14: ULLOA LUIS FELIPE | H14: SIMON NICOLAS | I14: BARAHONA ANDRES | J14: ULLOA FERNANDO | K14: 267.92 | L14: 154.77 | U14: 422.69
B15: 8 | C15: SELECT ECUADOR 2 | D15: BENITO JARAMILLO | E15: RAMIREZ FABRICIO | F15: RAMIREZ RAFAEL | G15: BENITO JARAMILLO | H15: SAMUEL JARAMILLO | I15: NICOLAS DUEÑAS | L15: 92.862 | O15: 195.021 | U15: 287.883
B16: 9 | C16: La Moderna | D16: ESTEBAN ALZAMORA | E16: JOAQUIN CORREA | F16: JUAN MARTIN CORREA | G16: ISABEL ALZAMORA | H16: CAROLINA PAIMANN | I16: CARLOS DAVALOS | J16: MARÍA CECILIA ALZAMORA | U16: =SUM(K16:T16) -> 0
B17: 10 | U17: =SUM(K17:T17) -> 0
B18: 11 | U18: =SUM(K18:T18) -> 0
B19: 12 | U19: 0
B20: 13 | U20: 0
B21: 14 | U21: 0
B22: 15 | U22: 0
B23: 16 | U23: 0

Sheet ELITE ABIERTA
B2: PUNTAJE ACUMULADO
B3: CATEGORÍA ABIERTA ELITE
B5: ELITE ABIERTA | E5: PUNTAJES
E6: 2014
C7: CODIGO | D7: JINETE | E7: I CHONE | F7: II CHONE | G7: III CHONE | H7: IV CHONE | I7: V CHONE | J7: VI CHONE | K7: VII CHONE | L7: VIII CHONE | M7: IX CHONE | N7: X CHONE | O7: ACUMULADO
B8: 1 | C8: A058 | D8: RIBADENEIRA ARTURO | F8: 160.8 | G8: 240 | H8: 159.6 | I8: 163.1 | M8: 136.68 | N8: 241.6 | O8: =SUM(E8:N8) -> 1101.78
B9: 2 | C9: A045 | D9: VINTIMILLA PABLO | H9: 240 | J9: 156.75 | L9: 165 | M9: 144.72 | N9: 229.52 | O9: 935.99
B10: 3 | C10: A092 | D10: MORABOWEN CESAR | E10: 152 | G10: 170 | I10: 154.945 | K10: 145.476 | M10: 152.76 | O10: 775.181
B11: 4 | C11: A190 | D11: PORTILLA FELIPE | F11: 101.304 | G11: 170 | K11: 161.64 | M11: 120.6 | N11: 165.49 | O11: 719.034
B12: 5 | C12: A055 | D12: LOZADA ARMANDO | E12: 112 | G12: 161.5 | H12: 151.2 | J12: 148.5 | L12: 85.5 | O12: 658.7
B13: 6 | C13: A035 | D13: WEEMAELS NATHALIE | G13: 228 | H13: 168 | I13: 163.1 | M13: 80.4 | O13: 639.5
B14: 7 | C14: A060 | D14: VELEZ MENA MARIA CONSUELO | E14: 106.4 | F14: 106.932 | J14: 165 | N14: 217.44 | O14: 595.772
B15: 8 | C15: A059 | D15: BURBANO VILLAVICENCIO JAIME | F15: 112.56 | J15: 165 | L15: 156.75 | N15: 148.07 | O15: 582.38
B16: 9 | C16: A056 | D16: MORILLO MAURICIO | F16: 120.6 | I16: 83.88 | K16: 83.41 | M16: 160.8 | N16: 78.12 | O16: 526.81
B17: 10 | C17: A172 | D17: SERRANO ARMANDO JOSE | G17: 85.6 | K17: 153.558 | M17: 128.64 | N17: 139.36 | O17: 507.158
B18: 11 | C18: A200 | D18: RECALDE JUAN JOSE | F18: 95.676 | I18: 146.79 | K18: 120.44 | M18: 108.54 | O18: 471.446
B19: 12 | C19: A171 | D19: ALMEIDA AYALA HECTOR | H19: 228 | J19: 148.5 | M19: 76.38 | O19: 452.88
B20: 13 | C20: A033 | D20: ALLAICO JOSE EMILIO | E20: 106.4 | H20: 159.6 | N20: 156.78 | O20: 422.78
B21: 14 | C21: A130 | D21: MANCHENO GALO PATRICIO | G21: 161.5 | K21: 153.558 | M21: 102.51 | O21: 417.568
B22: 15 | C22: A046 | D22: MALO JAIME | E22: 160 | H22: 96 | J22: 85.5 | O22: 341.5
B23: 16 | C23: A067 | D23: NOBOA MAURICIO | E23: 54.74 | I23: 121.16 | M23: 152.76 | O23: 328.66
B24: 17 | C24: A081 | D24: CANDO MARIO | I24: 146.79 | M24: 160.8 | O24: 307.59
B25: 18 | C25: A200 | D25: KOPPEL OSWALDO | E25: 64.4 | F25: 152.76 | H25: 86.4 | O25: 303.56
B26: 19 | C26: A130 | D26: MALO DIANA | H26: 168 | J26: 120 | O26: 288
B27: 20 | C27: A026 | D27: GUARDERAS SEBASTIAN | N27: 174.2 | O27: 174.2
B28: 21 | C28: A023 | D28: MALO JAIME | L28: 120 | O28: 120
B29: 22 | C29: A051 | D29: LETORT MENA JOSE | K29: 87.8 | O29: 87.8
B30: 23 | C30: A187 | D30: SERRANO JUAN CARLOS | K30: 79.02 | O30: 79.02
L32: =IF(J32>=60,"CLASIFICADO A 60 Km LIBRE y 80 Km NOVICIO",IF(J32>=40,"CLASIFICADO A 40 Km LIBRE y 60 Km NOVICIO","")) -> 
L50: =IF(J50>=60,"CLASIFICADO A 60 Km LIBRE y 80 Km NOVICIO",IF(J50>=40,"CLASIFICADO A 40 Km LIBRE y 60 Km NOVICIO","")) -> 

Sheet ELITE JUVENIL
B2: PUNTAJE ACUMULADO
B3: CATEGORÍA JUVENIL ELITE
B5: ELITE JUVENIL | E5: PUNTAJES
E6: 2014
C7: CODIGO | D7: JINETE | E7: I CHONE | F7: II CHONE | G7: III CHONE | H7: IV CHONE | I7: V CHONE | J7: VI CHONE | K7: VII CHONE | L7: VIII CHONE | M7: IX CHONE | N7: X CHONE | O7: ACUMULADO
B8: 1 | C8: J034 | D8: ANDRADE JOSE DANIEL | E8: 160 | F8: 160.8 | G8: 240 | J8: 165 | K8: 161.64 | L8: 90 | M8: 160.8 | O8: =SUM(E8:N8) -> 1138.24
B9: 2 | C9: J063 | D9: GONZALEZ BERNARDA | E9: 106.4 | G9: 228 | I9: 219.438 | J9: 165 | O9: 718.838
B10: 3 | C10: J047 | D10: LETORT DUEÑAS JOSE IGNACIO | G10: 161.5 | I10: 163.1 | M10: 160.8 | N10: 174.2 | O10: 659.6
B11: 4 | C11: J059 | D11: DUBACH CAROLINA | F11: 112.56 | G11: 161.5 | H11: 96 | K11: 145.476 | M11: 120.6 | O11: 636.136
B12: 5 | C12: A097 | D12: LETORT DUEÑAS BERNARDA | F12: 144.72 | K12: 87.8 | M12: 144.72 | N12: 165.49 | O12: 542.73
B13: 6 | C13: J008 | D13: GOMEZ ALEXANDER | H13: 228 | I13: 231.629 | O13: 459.629
B14: 7 | C14: J021 | D14: CORNEJO BURNEO MANUEL | F14: 120.6 | K14: 83.41 | M14: 152.76 | N14: 86.8 | O14: 443.57
B15: 8 | C15: J013 | D15: MORILLO SERGIO | G15: 170 | I15: 243.82 | O15: 413.82
B16: 9 | C16: J087 | D16: MALO TORAL DAVID | F16: 152.76 | H16: 240 | O16: 392.76
B17: 10 | C17: J079 | D17: JARAMILLO MANUELA | F17: 136.68 | I17: 79.686 | K17: 79.02 | N17: 82.46 | O17: 377.846
B18: 11 | C18: J055 | D18: LOYOLA CLAUDIA MARIA | E18: 152 | H18: 168 | O18: 320
B19: 12 | C19: J043 | D19: MORENO DANIEL | K19: 153.558 | M19: 136.68 | O19: 290.238
B20: 13 | C20: J031 | D20: RIBADENEIRA SOFIA | N20: 241.6 | O20: 241.6
B21: 14 | C21: J057 | D21: GUARDERAS JOSE GABRIEL | I21: 154.945 | O21: 154.945
B22: 15 | C22: J020 | D22: SERRANO FELIPE | K22: 137.394 | O22: 137.394
B23: 16 | O23: =SUM(E23:N23) -> 0
B24: 17 | O24: 0
B25: 18 | O25: 0
B26: 19 | O26: 0
L28: =IF(J28>=60,"CLASIFICADO A 60 Km LIBRE y 80 Km NOVICIO",IF(J28>=40,"CLASIFICADO A 40 Km LIBRE y 60 Km NOVICIO","")) -> 
L39: =IF(J39>=60,"CLASIFICADO A 60 Km LIBRE y 80 Km NOVICIO",IF(J39>=40,"CLASIFICADO A 40 Km LIBRE y 60 Km NOVICIO","")) -> 

Sheet ELITE MENORES
B2: PUNTAJE ACUMULADO
B3: CATEGORÍA MENORES ELITE
B5: ELITE MENORES | E5: PUNTAJES
E6: 2014
C7: CODIGO | D7: JINETE | E7: I CHONE | F7: II CHONE | G7: III CHONE | H7: IV CHONE | I7: V CHONE | J7: VI CHONE | K7: VII CHONE | L7: VIII CHONE | M7: IX CHONE | N7: X CHONE | O7: ACUMULADO
B8: 1 | C8: M013 | D8: JARAMILLO BENITO | F8: 112.56 | I8: 163.1 | K8: 87.8 | M8: 160.8 | O8: =SUM(E8:N8) -> 524.26
B9: 2 | O9: 0
B10: 3 | O10: 0
B11: 4 | O11: 0
B12: 5 | O12: 0
B13: 6 | O13: 0
B14: 7 | O14: 0
B15: 8 | O15: 0
B16: 9 | O16: 0
B17: 10 | O17: 0
B18: 11 | O18: 0
B19: 12 | O19: 0
B20: 13 | O20: 0
B21: 14 | O21: 0
B22: 15 | O22: =SUM(E22:N22) -> 0
B23: 16 | O23: 0
B24: 17 | O24: 0
B25: 18 | O25: 0
B26: 19 | O26: 0
L28: =IF(J28>=60,"CLASIFICADO A 60 Km LIBRE y 80 Km NOVICIO",IF(J28>=40,"CLASIFICADO A 40 Km LIBRE y 60 Km NOVICIO","")) -> 
L39: =IF(J39>=60,"CLASIFICADO A 60 Km LIBRE y 80 Km NOVICIO",IF(J39>=40,"CLASIFICADO A 40 Km LIBRE y 60 Km NOVICIO","")) -> 

Sheet ELITE CABALLOS
B2: PUNTAJE ACUMULADO
B3: CATEGORÍA CABALLOS ELITE
B5: ELITE CABALLOS | F5: PUNTAJES
F6: 2014
C7: CODIGO | D7: CABALLO | E7: DUEÑO/JINETE | F7: I CHONE | G7: II CHONE | H7: III CHONE | I7: IV CHONE | J7: V CHONE | K7: VI CHONE | L7: VII CHONE | M7: VIII CHONE | N7: IX CHONE | O7: X CHONE | P7: ACUMULADO
B8: 1 | C8: C188 | D8: FRODO | E8: ARTURO RIBADENEIRA | H8: 240 | N8: 120.6 | O8: 241.6 | P8: =SUM(F8:O8) -> 602.2
B9: 2 | C9: C202 | D9: PV RIGUEL | E9: PABLO VINTIMILLA | H9: 161.5 | I9: 240 | K9: 156.75 | P9: =SUM(F9:O9) -> 558.25
B10: 3 | C10: C174 | D10: ZT SATFANTDU | E10: ARTURO RIBADENEIRA | G10: 112.56 | I10: 159.6 | J10: 83.88 | L10: 145.476 | N10: 80.4 | O10: 241.6 | P10: =+O10+I10+L10 -> 546.676
B11: 4 | C11: C252 | D11: BIANCA | E11: PABLO VINTIMILLA | I11: 151.2 | K11: 148.5 | M11: 165 | O11: 229.52 | P11: =SUM(F11:O11)-K11 -> 545.72
B12: 5 | C12: C154 | D12: SHAKIRA | E12: LETORT DUEÑAS JOSE IGNACIO | H12: 161.5 | J12: 163.1 | N12: 160.8 | O12: 174.2 | P12: =SUM(F12:O12)-N12 -> 498.8
B13: 6 | C13: C204 | D13: AR ALBATSYN | E13: PORTILLA FELIPE | G13: 101.304 | H13: 170 | L13: 161.64 | N13: 120.6 | O13: 165.49 | P13: =SUM(H13:O13)-N13 -> 497.13
B14: 7 | C14: C175 | D14: CLAW | E14: ARTURO RIBADENEIRA | G14: 160.8 | I14: 240 | L14: 87.8 | N14: 80.4 | P14: =SUM(G14:M14) -> 488.6
B15: 8 | C15: C134 | D15: JUPITER | E15: ANDRADE JOSE DANIEL | G15: 160.8 | J15: 83.88 | K15: 165 | L15: 161.64 | P15: =+G15+K15+L15 -> 487.44
B16: 9 | C16: C329 | D16: SERENATA CMB | E16: MORABOWEN CESAR | F16: 152 | H16: 170 | J16: 154.945 | L16: 145.476 | N16: 152.76 | P16: =+H16+J16+N16 -> 477.705
B17: 10 | C17: C382 | D17: PSICOTICO | E17: MANCHENO GALO PATRICIO | H17: 161.5 | J17: 154.945 | L17: 153.558 | N17: 102.51 | P17: =SUM(F17:L17) -> 470.003
B18: 11 | C18: C097 | D18: CENTAURO | E18: ALMEIDA AYALA HECTOR | K18: 165 | M18: 156.75 | O18: 148.07 | P18: =SUM(F18:O18) -> 469.82
B19: 12 | C19: C148 | D19: FUERTE | E19: GOMEZ ALEXANDER | I19: 228 | J19: 231.629 | P19: =SUM(F19:O19) -> 459.629
B20: 13 | C20: C046 | D20: AMARETO | E20: LETORT DUEÑAS BERNARDA | G20: 144.72 | L20: 87.8 | N20: 144.72 | O20: 165.49 | P20: =SUM(F20:O20)-L20 -> 454.93
B21: 14 | C21: C365 | D21: AS CHAGRA | E21: SERRANO ARMANDO JOSE | J21: 146.79 | N21: 160.8 | O21: 139.36 | P21: =SUM(F21:O21) -> 446.95
B22: 15 | C22: C261 | D22: GRINGO | E22: MASAPANTA KEVIN | J22: 163.1 | L22: 145.476 | N22: 136.68 | P22: 445.256
B23: 16 | C23: C333 | D23: KADIN | E23: ALLAICO JOSE EMILIO | F23: 106.4 | I23: 159.6 | O23: 156.78 | P23: 422.78
B24: 17 | C24: C200 | D24: MULATA | E24: RECALDE JUAN JOSE | G24: 95.676 | J24: 146.79 | O24: 174.2 | P24: 416.666
B25: 18 | C25: C072 | D25: QUITA PENAS | E25: MORILLO SERGIO | H25: 170 | J25: 243.82 | P25: 413.82
B26: 19 | C26: C234 | D26: EL PADRINO | E26: MALO TORAL DAVID | F26: 160 | G26: 152.76 | I26: 96 | P26: 408.76
B27: 20 | C27: C398 | D27: OM EL FIRST CHANCE | E27: ANDRADE JOSE DANIEL | F27: 160 | H27: 240 | P27: 400
B28: 21 | C28: C119 | D28: LLUVIA CMB | E28: MORABOWEN CESAR | F28: 61.18 | I28: 168 | J28: 163.1 | P28: 392.28
B29: 22 | C29: C096 | D29: AR FAISAN | E29: ARTURO RIBADENEIRA | H29: 161.5 | J29: 219.438 | P29: 380.938
B30: 23 | C30: C019 | D30: NICOLAS | E30: JARAMILLO MANUELA | G30: 136.68 | L30: 79.02 | N30: 160.8 | P30: 376.5
B31: 24 | C31: C147 | D31: CAMARON | G31: 101.304 | J31: 154.945 | N31: 76.38 | P31: 332.629
B32: 25 | C32: C197 | D32: PATACON | E32: LOYOLA CLAUDIA MARIA | F32: 152 | I32: 168 | P32: 320
B33: 26 | C33: C074 | D33: WISKY | E33: VINTIMILLA PABLO | M33: 165 | N33: 144.72 | P33: 309.72
B34: 27 | C34: C114 | D34: KAFIR HA | E34: ALMEIDA AYALA HECTOR | N34: 76.38 | O34: 217.44 | P34: 293.82
B35: 28 | C35: C143 | D35: ALI | E35: DARQUEA RICARDO | J35: 154.945 | L35: 137.394 | P35: 292.339
B36: 29 | C36: C294 | D36: REMOLACHA | E36: MALO DIANA | I36: 168 | K36: 120 | P36: 288
B37: 30 | C37: C341 | D37: TENGRI | E37: VELEZ MENA MARIA CONSUELO | G37: 152.76 | I37: 96 | P37: 248.76
B38: 31 | C38: C106 | D38: ZEUS LL | E38: MORILLO MAURICIO | L38: 83.41 | N38: 160.8 | P38: 244.21
B39: 32 | C39: C135 | D39: CARAGUAY | L39: 83.41 | N39: 152.76 | P39: 236.17
B40: 33 | C40: C425 | D40: AR BOMBON | E40: RECALDE JUAN JOSE | L40: 120.44 | N40: 108.54 | P40: 228.98
B41: 34 | C41: C232 | D41: ASRAEL | E41: GONZALEZ BERNARDA | H41: 228 | P41: 228
B42: 35 | C42: C115 | D42: AVENTURERO | E42: ALMEIDA AYALA HECTOR | I42: 228 | P42: 228
B43: 36 | C43: C093 | D43: CG ALLASKI | E43: WEEMAELS NATHALIE | H43: 228 | P43: 228
B44: 37 | C44: C189 | D44: HAAKIR | E44: CORNEJO BURNEO MANUEL | G44: 120.6 | P44: 120.6
B45: 38 | C45: C094 | D45: MISTERIO | E45: MORILLO MAURICIO | G45: 120.6 | P45: 120.6
B46: 39 | C46: C089 | D46: GR COMPADRE | J46: 83.88 | P46: 83.88
B47: 40 | C47: C360 | D47: RO EVITA | N47: 80.4 | P47: 80.4
B48: 41 | P48: =SUM(F48:O48) -> 0
B49: 42 | P49: 0
B50: 43 | P50: 0
B51: 44 | P51: 0
B52: 45 | P52: 0
B53: 46 | P53: 0
B54: 47 | P54: 0
B55: 48 | P55: 0
B56: 49 | P56: 0
B57: 50 | P57: 0
B58: 51 | P58: 0
B59: 52 | P59: 0
B60: 53 | P60: 0
M80: =IF(K80>=60,"CLASIFICADO A 60 Km LIBRE y 80 Km NOVICIO",IF(K80>=40,"CLASIFICADO A 40 Km LIBRE y 60 Km NOVICIO","")) -> 

Sheet AMATEUR ABIERTA
B2: PUNTAJE ACUMULADO
B3: CATEGORÍA ABIERTA NOVICIOS
B5: NOVICIOS ABIERTA | E5: PUNTAJES
E6: 2014
C7: CODIGO | D7: JINETE | E7: I CHONE | F7: II CHONE | G7: III CHONE | H7: IV CHONE | I7: V CHONE | J7: VI CHONE | K7: VII CHONE | L7: VIII CHONE | M7: IX CHONE | N7: X CHONE | O7: ACUMULADO
B8: 1 | C8: A137 | D8: ESPINOZA JUAN SEBASTIAN | E8: 96.6 | J8: 156.75 | L8: 165 | N8: 174.2 | O8: =SUM(E8:N8) -> 592.55
B9: 2 | C9: A125 | D9: FALCONI FRANCISCO | G9: 77.04 | I9: 75.492 | M9: 114.57 | N9: 122.4 | O9: 389.502
B10: 3 | C10: A021 | D10: ALVEAR JUAN CARLOS | K10: 145.476 | M10: 76.38 | N10: 86.8 | O10: 308.656
B11: 4 | C11: A123 | D11: SAMPER ALVARO | K11: 161.64 | M11: 144.72 | O11: 306.36
B12: 5 | C12: A187 | D12: MOYA MIGUEL ANGEL | I12: 79.686 | M12: 80.4 | N12: 116.28 | O12: 276.366
B13: 6 | C13: A142 | D13: GONZALEZ SEBASTIAN | J13: 90 | L13: 90 | O13: 180
B14: 7 | C14: A177 | D14: RAMIREZ FABRICIO | G14: 72.76 | I14: 71.298 | O14: 144.058
B15: 8 | C15: A089 | D15: ORTIZ FERNANDO | I15: 115.102 | O15: 115.102
B16: 9 | C16: A143 | D16: LUGMAÑA JUAN CARLOS | H16: 91.2 | O16: 91.2
B17: 10 | C17: A204 | D17: PLUAS JUNIOR | L17: 90 | O17: 90
B18: 11 | C18: J101 | D18: PALACIOS GUIDO | L18: 85.5 | O18: 85.5
B19: 12 | C19: A186 | D19: DIAZ KOLICH DANITZA | N19: 82.46 | O19: 82.46
B20: 13 | C20: A185 | D20: BURBANO SERRANO JAIME ROLANDO | H20: 81.6 | O20: 81.6
B21: 14 | C21: A201 | D21: ULLOA GORDON FERNANDO | G21: 81.32 | O21: 81.32
B22: 15 | C22: A207 | D22: CASTRO TRAJANO | L22: 81 | O22: 81
B23: 16 | C23: A201 | D23: ULLOA GORDON FERNANDO | E23: 61.18 | O23: 61.18
B24: 17 | C24: A079 | D24: CUSME EDISON | E24: 57.96 | O24: 57.96
B25: 18 | O25: =SUM(E25:N25) -> 0
B26: 19 | O26: 0
B27: 20 | O27: =SUM(E27:N27) -> 0
B28: 21 | O28: 0
B29: 22 | O29: 0
B30: 23 | O30: 0
B31: 24 | O31: 0
B32: 25 | O32: 0
B33: 26 | O33: 0
B34: 27 | O34: 0
B35: 28 | O35: 0
B36: 29 | O36: 0
B37: 30 | O37: 0
B38: 31 | O38: 0
B39: 32 | O39: 0
B40: 33 | O40: 0
B41: 34 | O41: 0
B42: 35 | O42: 0
B43: 36 | O43: 0
B44: 37 | O44: 0
B45: 38 | O45: 0
B46: 39 | O46: 0
B47: 40 | O47: 0
B48: 41 | O48: 0
B49: 42 | O49: 0
B50: 43 | O50: =SUM(E50:N50) -> 0
B51: 44 | O51: =SUM(E51:N51) -> 0
B52: 45 | O52: 0
B53: 46 | O53: 0
B54: 47 | O54: 0
B55: 48 | O55: 0
B56: 49 | O56: 0
B57: 50 | O57: 0
B58: 51 | O58: 0
B59: 52 | O59: 0
B60: 53 | O60: 0
B61: 54 | O61: 0
B62: 55 | O62: 0
B63: 56 | O63: 0
B64: 57 | O64: 0
B65: 58 | O65: 0
B66: 59 | O66: 0
B67: 60 | O67: 0
B68: 61 | O68: 0
B69: 62 | O69: 0
B70: 63 | O70: 0
B71: 64 | O71: 0
B72: 65 | O72: 0
B73: 66 | O73: 0
B74: 67 | O74: 0
L94: =IF(J94>=60,"CLASIFICADO A 60 Km LIBRE y 80 Km NOVICIO",IF(J94>=40,"CLASIFICADO A 40 Km LIBRE y 60 Km NOVICIO","")) -> 

Sheet AMATEUR JUVENIL
B2: PUNTAJE ACUMULADO
B3: CATEGORÍA JUVENIL NOVICIOS
B5: NOVICIOS JUVENIL | E5: PUNTAJES
E6: 2014
C7: CODIGO | D7: JINETE | E7: I CHONE | F7: II CHONE | G7: III CHONE | H7: IV CHONE | I7: V CHONE | J7: VI CHONE | K7: VII CHONE | L7: VIII CHONE | M7: IX CHONE | N7: X CHONE | O7: ACUMULADO
B8: 1 | C8: J100 | D8: MASAPANTA KEVIN | I8: 163.1 | M8: 80.4 | O8: =SUM(E8:N8) -> 243.5
B9: 2 | C9: J099 | D9: DARQUEA ANA MARIA | H9: 91.2 | I9: 83.88 | O9: =SUM(E9:N9) -> 175.08
B10: 3 | C10: J096 | D10: HURTADO HECTOR | E10: 51.52 | L10: 120 | O10: =SUM(E10:N10) -> 171.52
B11: 4 | C11: J091 | D11: BERREZUETA DELGADO PABLO SANTIAGO | E11: 112 | G11: 170 | O11: =SUM(G11:N11) -> 170
B12: 5 | C12: J108 | D12: DAVALOS JOAQUINA | K12: 87.8 | M12: 80.4 | O12: =SUM(E12:N12) -> 168.2
B13: 6 | C13: J096 | D13: LOYOLA TEODORO ANDRES | H13: 168 | O13: =SUM(E13:N13) -> 168
B14: 7 | C14: J019 | D14: DARQUEA RICARDO | I14: 154.945 | O14: =SUM(E14:N14) -> 154.945
B15: 8 | C15: J102 | D15: SALTIVERI MARIA JESUS | E15: 57.96 | N15: 78.12 | O15: =SUM(E15:N15) -> 136.08
B16: 9 | C16: J099 | D16: RODITTI CARVAJAL CRISTORO | F16: 106.932 | O16: =SUM(E16:N16) -> 106.932
B17: 10 | C17: J057 | D17: GUARDERAS JOSE GABRIEL | F17: 101.304 | M17: 76.38 | O17: =SUM(E17:K17) -> 101.304
B18: 11 | C18: J098 | D18: MORENO PAULINA | H18: 96 | O18: =SUM(E18:N18) -> 96
B19: 12 | C19: J097 | D19: MALO ANAHI | J19: 90 | O19: =SUM(E19:N19) -> 90
B20: 13 | C20: J091 | D20: RODITTI CRISTOFORO | E20: 64.4 | O20: =SUM(E20:N20) -> 64.4
B21: 14 | C21: J101 | D21: GRANIZO GARNADA FABIANA | E21: 61.18 | O21: =SUM(E21:N21) -> 61.18
B22: 15 | C22: J088 | D22: SIMON NICOLAS | E22: 54.74 | O22: =SUM(E22:N22) -> 54.74
B23: 16 | O23: =SUM(E23:N23) -> 0
B24: 17 | O24: 0
B25: 18 | O25: =SUM(E25:N25) -> 0
B26: 19 | O26: 0
B27: 20 | O27: 0
B28: 21 | O28: 0
B29: 22 | O29: 0
B30: 23 | O30: 0
B31: 24 | O31: 0
B32: 25 | O32: 0
B33: 26 | O33: 0
B34: 27 | O34: 0
B35: 28 | O35: 0
B36: 29 | O36: 0
B37: 30 | O37: 0
B38: 31 | O38: 0
B39: 32 | O39: 0
B40: 33 | O40: 0
B41: 34 | O41: 0
B42: 35 | O42: 0
B43: 36 | O43: 0
B44: 37 | O44: 0
B45: 38 | O45: 0
B46: 39 | O46: 0
B47: 40 | O47: 0
B48: 41 | O48: 0
B49: 42 | O49: 0
B50: 43 | O50: 0
B51: 44 | O51: 0
B52: 45 | O52: 0
B53: 46 | O53: 0
B54: 47 | O54: 0
B55: 48 | O55: 0
B56: 49 | O56: 0
B57: 50 | O57: 0
B58: 51 | O58: 0
B59: 52 | O59: 0
B60: 53 | O60: 0
B61: 54 | O61: 0
B62: 55 | O62: 0
B63: 56 | O63: 0
L65: =IF(J65>=60,"CLASIFICADO A 60 Km LIBRE y 80 Km NOVICIO",IF(J65>=40,"CLASIFICADO A 40 Km LIBRE y 60 Km NOVICIO","")) -> 
L83: =IF(J83>=60,"CLASIFICADO A 60 Km LIBRE y 80 Km NOVICIO",IF(J83>=40,"CLASIFICADO A 40 Km LIBRE y 60 Km NOVICIO","")) -> 

Sheet AMATEUR MENORES
B2: PUNTAJE ACUMULADO
B3: CATEGORÍA MENORES NOVICIOS
B5: INFANTIL | E5: PUNTAJES
E6: 2014
C7: CODIGO | D7: JINETE | E7: I CHONE | F7: II CHONE | G7: III CHONE | H7: IV CHONE | I7: V CHONE | J7: VI CHONE | K7: VII CHONE | L7: VIII CHONE | M7: IX CHONE | N7: X CHONE | O7: ACUMULADO
B8: 1 | C8: M042 | D8: TORRES UGALDE RAFAEL ESTEBAN | E8: 61.18 | H8: 76.8 | L8: 85.5 | O8: =SUM(E8:N8) -> 223.48
B9: 2 | C9: M039 | D9: TORRES GIORDANO ALEJANDRO | H9: 91.2 | L9: 90 | O9: 181.2
B10: 3 | C10: M022 | D10: MORABOWEN MOSQUERA CESAR | I10: 79.686 | N10: 86.8 | O10: 166.486
B11: 4 | C11: M029 | D11: JIJON SOFIA | I11: 83.88 | M11: 80.4 | O11: 164.28
B12: 5 | C12: M036 | D12: MALO TOMAS | E12: 64.4 | H12: 96 | O12: 160.4
B13: 6 | C13: M036 | D13: MOSCOSO JUAN PABLO | H13: 72 | L13: 81 | O13: 153
B14: 7 | C14: M037 | D14: MARIN CESAR JAVIER | L14: 90 | O14: 90
B15: 8 | C15: M042 | D15: VAZQUEZ MOSCOSO SEBASTIAN | H15: 86.4 | O15: 86.4
B16: 9 | C16: M037 | D16: LOPEZ JUAN RAFAEL | L16: 85.5 | O16: 85.5
B17: 10 | C17: M040 | D17: TORAL JUAN DIEGO | H17: 81.6 | O17: 81.6
B18: 11 | C18: M017 | D18: JARAMILLO SAMUEL | I18: 75.492 | O18: 75.492
B19: 12 | O19: =SUM(E19:N19) -> 0
B20: 13 | O20: 0
B21: 14 | O21: 0
B22: 15 | O22: 0
B23: 16 | O23: 0
B24: 17 | O24: 0
B25: 18 | O25: 0
B26: 19 | O26: 0
B27: 20 | O27: 0
B28: 21 | O28: 0
B29: 22 | O29: 0
B30: 23 | O30: 0
L32: =IF(J32>=60,"CLASIFICADO A 60 Km LIBRE y 80 Km NOVICIO",IF(J32>=40,"CLASIFICADO A 40 Km LIBRE y 60 Km NOVICIO","")) -> 
L50: =IF(J50>=60,"CLASIFICADO A 60 Km LIBRE y 80 Km NOVICIO",IF(J50>=40,"CLASIFICADO A 40 Km LIBRE y 60 Km NOVICIO","")) -> 

Sheet CABALLOS NOVICIOS
B2: PUNTAJE ACUMULADO
B3: CATEGORÍA CABALLOS NOVICIOS
B5: ELITE CABALLOS | F5: PUNTAJES
F6: 2014
C7: CODIGO | D7: CABALLO | E7: DUEÑO/JINETE | F7: I CHONE | G7: II CHONE | H7: III CHONE | I7: IV CHONE | J7: V CHONE | K7: VI CHONE | L7: VII CHONE | M7: VIII CHONE | N7: IX CHONE | O7: X CHONE | P7: ACUMULADO
B8: 1 | C8: C397 | D8: KALA | E8: ESPINOZA JUAN SEBASTIAN | F8: 96.6 | K8: 156.75 | M8: 165 | O8: 174.2 | P8: =SUM(F8:O8) -> 592.55
B9: 2 | C9: C206 | D9: AS GITANA | E9: RAMIREZ FABRICIO | H9: 72.76 | J9: 71.298 | L9: 153.558 | N9: 128.64 | P9: 426.256
B10: 3 | C10: C371 | D10: CARRUZO | E10: SAMPER ALVARO | L10: 161.64 | N10: 144.72 | P10: 306.36
B11: 4 | C11: C238 | D11: CALEÑA CMB | E11: ULLOA GORDON FERNANDO | F11: 54.74 | H11: 81.32 | J11: 79.686 | O11: 86.8 | P11: 302.546
B12: 5 | C12: C163 | D12: AR SEGOVIA | E12: RIBADENEIRA ARTURO | J12: 163.1 | N12: 136.68 | P12: 299.78
B13: 6 | C13: C130 | D13: ESPIRITU DEL ECUADOR | E13: BERREZUETA DELGADO PABLO SANTIAGO | F13: 112 | H13: 170 | P13: 282
B14: 7 | C14: C029 | D14: MILONGA | E14: JARAMILLO BENITO | G14: 112.56 | J14: 163.1 | P14: 275.66
B15: 8 | C15: C361 | D15: LIA | E15: MAURICIO NOBOA | J15: 121.16 | N15: 152.76 | P15: 273.92
B16: 9 | C16: C304 | D16: ZA SOFIA | E16: VELEZ MENA MARIA CONSUELO | G16: 106.932 | K16: 165 | P16: 271.932
B17: 10 | C17: C004 | D17: TEQUILA | E17: GONZALEZ BERNARDA | F17: 106.4 | K17: 165 | P17: 271.4
B18: 11 | C18: C333 | D18: KADIN | E18: GONZALEZ BERNARDA | F18: 106.4 | I18: 159.6 | P18: 266
B19: 12 | C19: C413 | D19: SOLOANDA | E19: ANDRADE JOSE DANIEL | M19: 90 | N19: 160.8 | P19: 250.8
B20: 13 | C20: C337 | D20: CAPORAL | E20: RODITTI CARVAJAL CRISTORO | F20: 61.18 | G20: 106.932 | O20: 78.12 | P20: 246.232
B21: 14 | C21: C286 | D21: NEGRO EG | E21: BURBANO SERRANO JAIME ROLANDO | I21: 81.6 | K21: 148.5 | P21: 230.1
B22: 15 | C22: C403 | D22: NEVADA | E22: TORRES UGALDE RAFAEL ESTEBAN | F22: 61.18 | I22: 76.8 | M22: 85.5 | P22: 223.48
B23: 18 | C23: C393 | D23: JASPER | E23: MALO ANAHI | K23: 90 | M23: 120 | P23: 210
B24: 19 | C24: C165 | D24: DIAMANTE | E24: FALCONI FRANCISCO | H24: 77.04 | N24: 114.57 | P24: 191.61
B25: 20 | C25: C392 | D25: MARISCAL | E25: MALO JAIME | I25: 96 | K25: 85.5 | P25: 181.5
B26: 21 | C26: C398 | D26: FRANCISCO | E26: TORRES GIORDANO ALEJANDRO | I26: 91.2 | M26: 90 | P26: 181.2
B27: 22 | C27: C406 | D27: ELECTRIFY VO | E27: FELIPE ANDRADE | K27: 90 | M27: 90 | P27: 180
B28: 23 | C28: C278 | D28: JUGUETE | E28: LOYOLA TEODORO ANDRES | I28: 168 | P28: 168
B29: 24 | C29: C427 | D29: FLACA | E29: SERRANO JUAN CARLOS | L29: 79.02 | O29: 86.8 | P29: 165.82
B30: 25 | C30: C404 | D30: SALMA | E30: JARAMILLO MANUELA | J30: 79.686 | O30: 82.46 | P30: 162.146
B31: 26 | C31: C059 | D31: GS RASHID | E31: MOYA MIGUEL ANGEL | J31: 79.686 | N31: 80.4 | P31: 160.086
B32: 27 | C32: C395 | D32: JUVENTINO | E32: MOSCOSO JUAN PABLO | I32: 72 | M32: 81 | P32: 153
B33: 28 | C33: C282 | D33: MAGIC MENES | E33: KOPPEL OSWALDO | F33: 64.4 | I33: 86.4 | P33: 150.8
B34: 29 | C34: C240 | D34: KALIFA | E34: RODITTI CRISTOFORO | F34: 64.4 | O34: 82.46 | P34: 146.86
B35: 31 | C35: C283 | D35: MAGIC ONE | E35: NOBOA MAURICIO | L35: 145.476 | P35: 145.476
B36: 32 | C36: C210 | D36: CHUQUIRAGUA | E36: ORTIZ FERNANDO | J36: 115.102 | P36: 115.102
B37: 33 | C37: C140 | D37: CS SADIQ | E37: HÉCTOR ALMEIDA AYALA | G37: 112.56 | P37: 112.56
B38: 34 | C38: C252 | D38: BIANCA | E38: LOZADA JOSE ARMANDO | F38: 112 | P38: 112
B39: 35 | C39: C390 | D39: MIDAS | I39: 96 | P39: 96
B40: 36 | C40: C394 | D40: POLACO | E40: MORENO PAULINA | I40: 96 | P40: =SUM(F40:O40) -> 96
B41: 37 | C41: C384 | D41: GALAN | E41: DARQUEA ANA MARIA | I41: 91.2 | P41: 91.2
B42: 38 | C42: C391 | D42: KALAHARI | E42: LUGMAÑA JUAN CARLOS | I42: 91.2 | P42: 91.2
B43: 39 | C43: C408 | D43: GEMA DC | E43: PLUAS JUNIOR | M43: 90 | P43: 90
B44: 40 | C44: C409 | D44: JOYA | E44: MARIN CESAR JAVIER | M44: 90 | P44: 90
B45: 41 | C45: C237 | D45: CHULPI | E45: JARAMILLO BENITO JOSE | L45: 87.8 | P45: 87.8
B46: 42 | C46: C079 | D46: SHAMIR SOLIN | E46: LETORT MENA JOSE | L46: 87.8 | P46: 87.8
B47: 43 | C47: C387 | D47: AGUARDIENTICO | E47: ALVEAR JUAN CARLOS | O47: 86.8 | P47: 86.8
B48: 44 | C48: C192 | D48: SUCO | E48: VAZQUEZ MOSCOSO SEBASTIAN | I48: 86.4 | P48: 86.4
B49: 45 | C49: C357 | D49: MD YALA | E49: SERRANO ARMANDO JOSE | H49: 85.6 | P49: 85.6
B50: 46 | C50: C418 | D50: COCHA | E50: PALACIOS GUIDO | M50: 85.5 | P50: 85.5
B51: 47 | C51: C414 | D51: GH PSHYRO | E51: LOZADA JOSE ARMANDO | M51: 85.5 | P51: 85.5
B52: 48 | C52: C397 | D52: RAYO | E52: LOPEZ JUAN RAFAEL | M52: 85.5 | P52: 85.5
B53: 49 | C53: C199 | D53: PADRINO | E53: TORAL JUAN DIEGO | I53: 81.6 | P53: 81.6
B54: 50 | C54: C412 | D54: BRISA | E54: CASTRO TRAJANO | M54: 81 | P54: 81
B55: 51 | C55: C372 | D55: NABU | E55: MAZAPANTA KEVIN | N55: 80.4 | P55: 80.4
B56: 52 | C56: C386 | D56: LUCKY | E56: MORILLO MAURICIO | O56: 78.12 | P56: 78.12
B57: 53 | C57: C307 | D57: TABATHA | E57: SORIA JUAN MANUEL | I57: 76.8 | P57: 76.8
B58: 54 | C58: C372 | D58: MERLIN | E58: NOBOA MAURICIO | N58: 76.38 | P58: 76.38
B59: 55 | C59: C369 | D59: MIEL | J59: 75.492 | P59: 75.492
B60: 56 | C60: C396 | D60: TUMBA HOMBRES | E60: MALO TOMAS | F60: 64.4 | P60: 64.4
B61: 57 | C61: C400 | D61: CM MAGNUM ROSE | E61: CUSME EDISON | F61: 57.96 | P61: 57.96
B62: 58 | C62: C243 | D62: DUBAI | E62: SALTIVERI MARIA JESUS | F62: 57.96 | P62: 57.96
B63: 59 | C63: C366 | D63: MAGO GH | E63: NOBOA MAURICIO | F63: 54.74 | P63: 54.74
B64: 60 | C64: C393 | D64: ABUDAVI | E64: HURTADO HECTOR | F64: 51.52 | P64: 51.52
B65: 61 | P65: 0
B66: 62 | P66: 0
B67: 63 | P67: 0
B68: 64 | P68: =SUM(F68:O68) -> 0
B69: 65 | P69: 0
B70: 66 | P70: 0
B71: 67 | P71: 0
B72: 68 | P72: =SUM(F72:O72) -> 0
B73: 69 | P73: 0
B74: 70 | P74: 0
B75: 71 | P75: 0
B76: 72 | P76: 0
B77: 73 | P77: 0
B78: 74 | P78: 0
B79: 75 | P79: 0
B80: 76 | P80: 0
B81: 77 | P81: 0
B82: 78 | P82: 0
B83: 79 | P83: 0
B84: 80 | P84: 0
B85: 81 | P85: 0
B86: 82 | P86: 0
B87: 83 | P87: 0
B88: 84 | P88: 0
B89: 85 | P89: 0
B90: 86 | P90: 0
B91: 87 | P91: 0
B92: 88 | P92: 0
B93: 89 | P93: 0
B94: 90 | P94: 0
B95: 91 | P95: 0
B96: 92 | P96: 0
B97: 93 | P97: 0
M117: =IF(K117>=60,"CLASIFICADO A 60 Km LIBRE y 80 Km NOVICIO",IF(K117>=40,"CLASIFICADO A 40 Km LIBRE y 60 Km NOVICIO","")) -> 

Sheet PR ABIERTA
B2: PUNTAJE ACUMULADO
B3: CATEGORÍA PROMOCIONAL ABIERTA
B5: PROMOCIONAL ABIERTA | E5: PUNTAJES
E6: 2014
C7: CODIGO | D7: JINETE | E7: I CHONE | F7: II CHONE | G7: III CHONE | H7: IV CHONE | I7: V CHONE | J7: VI CHONE | K7: VII CHONE | L7: VIII CHONE | M7: IX CHONE | N7: X CHONE | O7: ACUMULADO
B8: 1 | C8: A064 | D8: CASTILLO DIEGO | G8: 85.6 | I8: 83.88 | K8: 79.02 | M8: 80.4 | O8: =SUM(E8:N8) -> 328.9
B9: 2 | C9: A012 | D9: ALMEIDA PARDO HECTOR | K9: 83.41 | N9: 78.12 | O9: 161.53
B10: 3 | C10: A214 | D10: LEPPERT MISHELL | K10: 74.63 | M10: 68.34 | O10: 142.97
B11: 4 | C11: A030 | D11: MONCAYO DANILO | I11: 41.94 | K11: 87.8 | O11: 129.74
B12: 5 | C12: A212 | D12: CANGAS GUILLERMO | K12: 30.9 | N12: 86.8 | O12: 117.7
B13: 6 | C13: A213 | D13: ROSAS MARIO | K13: 32.96 | N13: 82.46 | O13: 115.42
B14: 7 | C14: M035 | D14: MANCHENO PAMELA | K14: 37.08 | M14: 76.38 | O14: 113.46
B15: 8 | C15: A165 | D15: MORALES ANDRES | G15: 81.32 | O15: 81.32
B16: 9 | C16: A068 | D16: HIDALGO MARIA JOSE | I16: 79.686 | O16: 79.686
B17: 10 | C17: A187 | D17: MOYA MIGUEL ANGEL | G17: 77.04 | O17: 77.04
B18: 11 | C18: A051 | D18: GUARDERAS SEBASTIAN | M18: 72.36 | O18: 72.36
B19: 12 | C19: A290 | D19: ESTEVEZ GEOVANNI | F19: 28.14 | G19: 40.66 | O19: 68.8
B20: 13 | C20: A193 | D20: CORO CHICAIZA JORGE | F20: 26.733 | K20: 39.14 | O20: 65.873
B21: 14 | C21: A182 | D21: TAYO SANDRO | N21: 51.2 | O21: 51.2
B22: 15 | C22: A183 | D22: HERRERA MARIA BELEN | N22: 48.64 | O22: 48.64
B23: 16 | C23: A193 | D23: SANTOS MICHAEL | G23: 42.8 | O23: 42.8
B24: 17 | C24: A196 | D24: MONCAYO CASTILLO FERNANDO | K24: 41.2 | O24: 41.2
B25: 18 | C25: A197 | D25: ANDINO DIEGO | M25: 40.2 | O25: 40.2
B26: 19 | C26: A096 | D26: MONCAYO JUAN MARCELO | I26: 39.843 | O26: 39.843
B27: 20 | C27: A194 | D27: CACHUMBA RODOLFO | G27: 38.52 | O27: 38.52
B28: 21 | C28: A082 | D28: GARZON JOSE RICARDO | I28: 37.746 | O28: 37.746
B29: 22 | C29: A039 | D29: CASTILLO MAURICIO | G29: 36.38 | O29: 36.38
B30: 23 | C30: A198 | D30: REINA RONALD | K30: 35.02 | O30: 35.02
B31: 24 | C31: A210 | D31: CORREA DAVID | K31: 28.84 | O31: 28.84
B32: 25 | C32: A195 | D32: MONCAYO FERNANDO | F32: 25.326 | O32: 25.326
B33: 26 | C33: A189 | D33: SANCHEZ CRISTIAN | F33: 23.919 | O33: 23.919
B34: 27 | C34: A194 | D34: GUERRERO EMILIO | F34: 22.512 | O34: 22.512
B35: 28 | C35: A188 | D35: VICUÑA ALEJANDRA | F35: 21.105 | O35: 21.105
L37: =IF(J37>=60,"CLASIFICADO A 60 Km LIBRE y 80 Km NOVICIO",IF(J37>=40,"CLASIFICADO A 40 Km LIBRE y 60 Km NOVICIO","")) -> 
L55: =IF(J55>=60,"CLASIFICADO A 60 Km LIBRE y 80 Km NOVICIO",IF(J55>=40,"CLASIFICADO A 40 Km LIBRE y 60 Km NOVICIO","")) -> 

Sheet PR JUVENIL
B2: PUNTAJE ACUMULADO
B3: CATEGORÍA PROMOCIONAL JUVENIL
B5: PROMOCIONAL JUVENIL | E5: PUNTAJES
E6: 2014
C7: CODIGO | D7: JINETE | E7: I CHONE | F7: II CHONE | G7: III CHONE | H7: IV CHONE | I7: V CHONE | J7: VI CHONE | K7: VII CHONE | L7: VIII CHONE | M7: IX CHONE | N7: X CHONE | O7: ACUMULADO
B8: 1 | C8: J104 | D8: AYMARA LEON SANDRO | G8: 42.8 | I8: 83.88 | N8: 48.64 | O8: =SUM(E8:N8) -> 175.32
B9: 2 | C9: J111 | D9: BEATE VARGAS PEDRO | K9: 87.8 | N9: 86.8 | O9: 174.6
B10: 3 | C10: J110 | D10: NAVARRETE RUIZ BRAYAN | I10: 41.94 | K10: 80.4 | O10: 122.34
B11: 4 | C11: J087 | D11: VILLAMARIN ANDRES | M11: 38.19 | N11: 51.2 | O11: 89.39
B12: 5 | C12: J045 | D12: JIJON IGNACIO | K12: 83.41 | O12: 83.41
B13: 6 | C13: M037 | D13: TORRES KATHRINA | K13: 41.2 | M13: 40.2 | O13: 81.4
B14: 7 | C14: J022 | D14: JIJON JUAN ESTEBAN | K14: 79.02 | O14: 79.02
B15: 8 | C15: J100 | D15: MASAPANTA KEVIN | F15: 56.28 | O15: 56.28
B16: 9 | C16: J020 | D16: SERRANO VALLEJO FELIPE | F16: 53.466 | O16: 53.466
B17: 10 | C17: J095 | D17: WEBER FEDERICO | N17: 46.08 | O17: 46.08
B18: 11 | C18: J105 | D18: CORREA JOAQUIN | G18: 40.66 | O18: 40.66
B19: 12 | C19: J102 | D19: ARIAS JOSE TOMAS | F19: 28.14 | O19: 28.14
B20: 13 | O20: =SUM(E20:N20) -> 0
B21: 14 | O21: 0
B22: 15 | O22: 0
B23: 16 | O23: 0
B24: 17 | O24: 0
B25: 18 | O25: 0
B26: 19 | O26: 0
B27: 20 | O27: 0
B28: 21 | O28: 0
B29: 22 | O29: 0
B30: 23 | O30: 0
L32: =IF(J32>=60,"CLASIFICADO A 60 Km LIBRE y 80 Km NOVICIO",IF(J32>=40,"CLASIFICADO A 40 Km LIBRE y 60 Km NOVICIO","")) -> 
L50: =IF(J50>=60,"CLASIFICADO A 60 Km LIBRE y 80 Km NOVICIO",IF(J50>=40,"CLASIFICADO A 40 Km LIBRE y 60 Km NOVICIO","")) -> 

Sheet PR MENORES
B2: PUNTAJE ACUMULADO
B3: CATEGORÍA PROMOCIONAL MENORES
B5: PROMOCIONAL MENORES | E5: PUNTAJES
E6: 2014
C7: CODIGO | D7: JINETE | E7: I CHONE | F7: II CHONE | G7: III CHONE | H7: IV CHONE | I7: V CHONE | J7: VI CHONE | K7: VII CHONE | L7: VIII CHONE | M7: IX CHONE | N7: X CHONE | O7: ACUMULADO
B8: 1 | C8: M034 | D8: BEATE VARGAS MANUELA | K8: 87.8 | N8: 86.8 | O8: =SUM(E8:N8) -> 174.6
B9: 2 | C9: M028 | D9: CORREA JUAN MARTIN | I9: 83.88 | N9: 51.2 | O9: =SUM(E9:N9) -> 135.08
B10: 3 | C10: M042 | D10: TAPIA RUBEN | H10: 48 | O10: =SUM(E10:N10) -> 48
B11: 4 | O11: =SUM(E11:N11) -> 0
B12: 5 | O12: 0
B13: 6 | O13: 0
B14: 7 | O14: 0
B15: 8 | O15: 0
B16: 9 | O16: 0
B17: 10 | O17: 0
B18: 11 | O18: 0
B19: 12 | O19: 0
B20: 13 | O20: 0
B21: 14 | O21: 0
B22: 15 | O22: 0
B23: 16 | O23: 0
B24: 17 | O24: 0
B25: 18 | O25: 0
B26: 19 | O26: 0
B27: 20 | O27: 0
B28: 21 | O28: 0
B29: 22 | O29: 0
B30: 23 | O30: 0
L32: =IF(J32>=60,"CLASIFICADO A 60 Km LIBRE y 80 Km NOVICIO",IF(J32>=40,"CLASIFICADO A 40 Km LIBRE y 60 Km NOVICIO","")) -> 
L50: =IF(J50>=60,"CLASIFICADO A 60 Km LIBRE y 80 Km NOVICIO",IF(J50>=40,"CLASIFICADO A 40 Km LIBRE y 60 Km NOVICIO","")) -> 

Sheet PR INFANTIL
B2: PUNTAJE ACUMULADO
B3: CATEGORÍA PROMOCIONAL INFANTIL
B5: PROMOCIONAL INFANTIL | E5: PUNTAJES
E6: 2014
C7: CODIGO | D7: JINETE | E7: I CHONE | F7: II CHONE | G7: III CHONE | H7: IV CHONE | I7: V CHONE | J7: VI CHONE | K7: VII CHONE | L7: VIII CHONE | M7: IX CHONE | N7: X CHONE | O7: ACUMULADO
B8: 1 | C8: M017 | D8: JARAMILLO SAMUEL | F8: 28.14 | I8: 83.88 | K8: 41.2 | M8: 40.2 | O8: =SUM(E8:N8) -> 193.42
B9: 2 | C9: I043 | D9: DONOSO JULIAN | H9: 48 | J9: 45 | O9: =SUM(E9:N9) -> 93
B10: 3 | C10: I031 | D10: SALTIVERI ALEJANDRA | N10: 51.2 | O10: =SUM(E10:N10) -> 51.2
B11: 4 | C11: I044 | D11: DAVALOS REBECA | J11: 42.75 | O11: =SUM(E11:N11) -> 42.75
B12: 5 | O12: =SUM(E12:N12) -> 0
B13: 6 | O13: 0
B14: 7 | O14: 0
B15: 8 | O15: 0
B16: 9 | O16: 0
B17: 10 | O17: 0
B18: 11 | O18: 0
B19: 12 | O19: 0
B20: 13 | O20: 0
B21: 14 | O21: 0
B22: 15 | O22: 0
B23: 16 | O23: 0
B24: 17 | O24: 0
B25: 18 | O25: 0
B26: 19 | O26: 0
B27: 20 | O27: 0
B28: 21 | O28: 0
B29: 22 | O29: 0
B30: 23 | O30: 0
L32: =IF(J32>=60,"CLASIFICADO A 60 Km LIBRE y 80 Km NOVICIO",IF(J32>=40,"CLASIFICADO A 40 Km LIBRE y 60 Km NOVICIO","")) -> 
L50: =IF(J50>=60,"CLASIFICADO A 60 Km LIBRE y 80 Km NOVICIO",IF(J50>=40,"CLASIFICADO A 40 Km LIBRE y 60 Km NOVICIO","")) -> 

Sheet PR ADULTO-MENOR
B2: PUNTAJE ACUMULADO
B3: CATEGORÍA PROMOCIONAL ADULTO/MENOR
B5: BINOMIOS ABIERTA | E5: PUNTAJES
E6: 2014
C7: MENOR | D7: ADULTOS | E7: I CHONE | F7: II CHONE | G7: III CHONE | H7: IV CHONE | I7: V CHONE | J7: VI CHONE | K7: VII CHONE | L7: VIII CHONE | M7: IX CHONE | N7: X CHONE | O7: ACUMULADO
B8: 1 | C8: RAMIREZ RAFAEL | D8: MORENO GABRIEL, RAMIREZ FABRICIO | F8: 28.14 | G8: 42.8 | I8: 41.94 | M8: 36.18 | O8: =SUM(E8:N8) -> 149.06
B9: 4 | C9: DARQUEA APOLO EMILIO | D9: MASAPANTA FABIAN, DARQUEA BERNARDO, DARQUEA RAFAELA | F9: 25.326 | G9: 40.66 | M9: 40.2 | O9: =SUM(E9:N9) -> 106.186
B10: 2 | C10: BARAHONA MARIA EMILIA | D10: BARAHONA ANDRES | K10: 41.2 | N10: 48.64 | O10: =SUM(E10:N10) -> 89.84
B11: 3 | C11: JARAMILLO SAMUEL | D11: JARAMILLO BENITO | N11: 51.2 | O11: =SUM(E11:N11) -> 51.2
B12: 7 | C12: MORABOWEN MOSQUERA CESAR | D12: SANTOS MICHAEL | F12: 26.733 | O12: =SUM(E12:N12) -> 26.733
B13: 5 | O13: =SUM(E13:N13) -> 0
B14: 6 | O14: =SUM(E14:N14) -> 0
B15: 8 | O15: =SUM(E15:N15) -> 0
B16: 9 | O16: =SUM(E16:N16) -> 0
B17: 10 | O17: 0
B18: 11 | O18: 0
B19: 12 | O19: 0
B20: 13 | O20: 0
B21: 14 | O21: 0
B22: 15 | O22: 0
B23: 16 | O23: 0
B24: 17 | O24: 0
B25: 18 | O25: 0
B26: 19 | O26: 0
B27: 20 | O27: 0
B28: 21 | O28: 0
B29: 22 | O29: 0
B30: 23 | O30: 0
B31: 24 | O31: 0
B32: 25 | O32: 0
B33: 26 | O33: 0
B34: 27 | O34: 0
B35: 28 | O35: 0
B36: 29 | O36: 0
B37: 30 | O37: 0
B38: 31 | O38: 0
B39: 32 | O39: 0
B40: 33 | O40: 0
B41: 34 | O41: 0
B42: 35 | O42: 0
B43: 36 | O43: 0
B44: 37 | O44: 0
B45: 38 | O45: 0
B46: 39 | O46: 0
B47: 40 | O47: 0
B48: 41 | O48: 0
B49: 42 | O49: 0
B50: 43 | O50: 0
B51: 44 | O51: 0
B52: 45 | O52: 0
B53: 46 | O53: 0
B54: 47 | O54: 0
B55: 48 | O55: 0
B56: 49 | O56: 0
B57: 50 | O57: 0
B58: 51 | O58: 0
B59: 52 | O59: 0
B60: 53 | O60: 0
B61: 54 | O61: 0
B62: 55 | O62: 0
B63: 56 | O63: 0
B64: 57 | O64: 0
B65: 58 | O65: 0
B66: 59 | O66: =SUM(E66:N66) -> 0
B67: 60 | O67: 0
B68: 61 | O68: 0
B69: 62 | O69: 0
B70: 63 | O70: 0
B71: 64 | O71: 0
B72: 65 | O72: 0
B73: 66 | O73: 0
B74: 67 | O74: =SUM(E74:N74) -> 0
B75: 68 | O75: 0
B76: 69 | O76: 0
B77: 70 | O77: 0
B78: 71 | O78: 0
B79: 72 | O79: 0
B80: 73 | O80: 0
B81: 74 | O81: 0
B82: 75 | O82: 0
B83: 76 | O83: 0
B84: 77 | O84: 0
B85: 78 | O85: 0
B86: 79 | O86: 0
B87: 80 | O87: 0
B88: 81 | O88: 0
B89: 82 | O89: 0
B90: 83 | O90: 0
B91: 84 | O91: 0
B92: 85 | O92: 0
B93: 86 | O93: 0
B94: 87 | O94: 0
B95: 88 | O95: 0
B96: 89 | O96: 0
B97: 90 | O97: 0
B98: 91 | O98: 0
B99: 92 | O99: 0
B100: 93 | O100: 0
B101: 94 | O101: 0
B102: 95 | O102: 0
B103: 96 | O103: 0
B104: 97 | O104: 0
B105: 98 | O105: 0
B106: 99 | O106: 0
B107: 100 | O107: 0
B108: 101 | O108: 0
B109: 102 | O109: 0
B110: 103 | O110: 0
B111: 104 | O111: 0
B112: 105 | O112: 0
B113: 106 | O113: 0
B114: 107 | O114: 0
B115: 108 | O115: 0
B116: 109 | O116: 0
B117: 110 | O117: 0
B118: 111 | O118: 0
B119: 112 | O119: 0
B120: 113 | O120: 0
B121: 114 | O121: 0
B122: 115 | O122: 0
B123: 116 | O123: 0
B124: 117 | O124: 0
B125: 118 | O125: 0
B126: 119 | O126: 0
B127: 120 | O127: 0
B128: 121 | O128: 0
B129: 122 | O129: 0
B130: 123 | O130: 0
B131: 124 | O131: 0
B132: 125 | O132: 0
B133: 126 | O133: 0
B134: 127 | O134: 0
B135: 128 | O135: 0
B136: 129 | O136: 0
B137: 130 | O137: 0
B138: 131 | O138: =SUM(E138:N138) -> 0
B139: 132 | O139: 0
B140: 133 | O140: 0
B141: 134 | O141: 0
B142: 135 | O142: 0
B143: 136 | O143: 0
B144: 137 | O144: 0
B145: 138 | O145: 0
L165: =IF(J165>=60,"CLASIFICADO A 60 Km LIBRE y 80 Km NOVICIO",IF(J165>=40,"CLASIFICADO A 40 Km LIBRE y 60 Km NOVICIO","")) -> 

Sheet BINOMIOS ABIERTA
B2: PUNTAJE ACUMULADO
B3: CATEGORÍA BINOMIOS ABIERTA
B5: BINOMIOS ABIERTA | G5: PUNTAJES
G6: 2014
C7: CODIGO | D7: JINETE | E7: CODIGO | F7: CABALLO | G7: I CHONE | H7: II CHONE | I7: III CHONE | J7: IV CHONE | K7: V CHONE | L7: VI CHONE | M7: VII CHONE | N7: VIII CHONE | O7: IX CHONE | P7: X CHONE | Q7: ACUMULADO
B8: 1 | C8: A045 | D8: MORABOWEN CESAR | E8: C329 | F8: SERENATA CMB | G8: 152 | I8: 170 | K8: 154.945 | M8: 145.476 | O8: 152.76 | Q8: =+O8+K8+I8+G8 -> 629.705
B9: 2 | C9: A035 | D9: PORTILLA FELIPE | E9: C204 | F9: AR ALBATSYN | H9: 101.304 | I9: 170 | M9: 161.64 | O9: 120.6 | P9: 165.49 | Q9: =SUM(I9:P9) -> 617.73
B10: 3 | C10: A137 | D10: ESPINOZA JUAN SEBASTIAN | E10: C397 | F10: KALA | G10: 96.6 | L10: 156.75 | N10: 165 | P10: 174.2 | Q10: =SUM(G10:P10) -> 592.55
B11: 4 | C11: A200 | D11: MANCHENO GALO PATRICIO | E11: C382 | F11: SICOTICO | I11: 161.5 | K11: 154.945 | M11: 153.558 | O11: 102.51 | Q11: 572.513
B12: 5 | C12: A058 | D12: RIBADENEIRA ARTURO | E12: C188 | F12: FRODO | I12: 240 | P12: 241.6 | Q12: 481.6
B13: 6 | C13: A172 | D13: BURBANO VILLAVICENCIO JAIME | E13: C097 | F13: CENTAURO | L13: 165 | N13: 156.75 | P13: 148.07 | Q13: 469.82
B14: 7 | C14: A192 | D14: LOZADA JOSE ARMANDO | E14: C252 | F14: BIANCA | G14: 112 | J14: 151.2 | L14: 148.5 | Q14: 411.7
B15: 8 | C15: A092 | D15: VINTIMILLA PABLO | E15: C343 | F15: PV RIGUEL | J15: 240 | L15: 156.75 | Q15: 396.75
B16: 9 | C16: A092 | D16: VINTIMILLA PABLO | E16: C252 | F16: BIANCA | N16: 165 | P16: 229.52 | Q16: 394.52
B17: 10 | C17: A125 | D17: FALCONI FRANCISCO | E17: C165 | F17: DIAMANTE | I17: 77.04 | K17: 75.492 | O17: 114.57 | P17: 86.8 | Q17: 353.902
B18: 11 | C18: A055 | D18: WEEMAELS NATHALIE | E18: C119 | F18: LLUVIA CMB | J18: 168 | K18: 163.1 | Q18: 331.1
B19: 12 | C19: A201 | D19: ALLAICO JOSE EMILIO | E19: C333 | F19: KADIN | J19: 159.6 | P19: 156.78 | Q19: 316.38
B20: 13 | C20: A067 | D20: CANDO MARIO | E20: C257 | F20: AS CHAGRA | K20: 146.79 | O20: 160.8 | Q20: 307.59
B21: 14 | C21: A123 | D21: SAMPER ALVARO | E21: C371 | F21: CARRUZO | M21: 161.64 | O21: 144.72 | Q21: 306.36
B22: 15 | C22: A058 | D22: RIBADENEIRA ARTURO | E22: C163 | F22: AR SEGOVIA | K22: 163.1 | O22: 136.68 | Q22: 299.78
B23: 16 | C23: A033 | D23: SERRANO ARMANDO JOSE | E23: C206 | F23: AS GITANA | M23: 153.558 | O23: 128.64 | Q23: 282.198
B24: 17 | C24: A046 | D24: NOBOA MAURICIO | E24: C361 | F24: LIA | K24: 121.16 | O24: 152.76 | Q24: 273.92
B25: 18 | C25: A171 | D25: VELEZ MENA MARIA CONSUELO | E25: C304 | F25: ZA SOFIA | H25: 106.932 | L25: 165 | Q25: 271.932
B26: 19 | C26: A056 | D26: MORILLO MAURICIO | E26: C106 | F26: ZEUS LL | M26: 83.41 | O26: 160.8 | Q26: 244.21
B27: 20 | C27: A060 | D27: RECALDE JUAN JOSE | E27: C200 | F27: MULATA | H27: 95.676 | K27: 146.79 | Q27: 242.466
B28: 21 | C28: A060 | D28: RECALDE JUAN JOSE | E28: C425 | F28: AR BOMBON | M28: 120.44 | O28: 108.54 | Q28: 228.98
B29: 22 | C29: A059 | D29: ALMEIDA AYALA HECTOR | E29: C115 | F29: AVENTURERO | J29: 228 | Q29: 228
B30: 23 | C30: A055 | D30: WEEMAELS NATHALIE | E30: C093 | F30: CG ALLASKI | I30: 228 | Q30: 228
B31: 24 | C31: A171 | D31: VELEZ MENA MARIA CONSUELO | E31: C069 | F31: KAFIR | P31: 217.44 | Q31: 217.44
B32: 25 | C32: A142 | D32: GONZALEZ SEBASTIAN | E32: C406 | F32: ELECTRIFY VO | L32: 90 | N32: 90 | Q32: 180
B33: 26 | C33: A051 | D33: GUARDERAS SEBASTIAN | E33: C200 | F33: MULATA | P33: 174.2 | Q33: 174.2
B34: 27 | C34: A200 | D34: MALO DIANA | E34: C294 | F34: REMOLACHA | J34: 168 | Q34: 168
B35: 28 | C35: A187 | D35: MOYA MIGUEL ANGEL | E35: C059 | F35: GS RASHID | K35: 79.686 | P35: 82.46 | Q35: 162.146
B36: 29 | C36: A190 | D36: LOZADA ARMANDO | E36: C202 | F36: RIGUEL | I36: 161.5 | Q36: 161.5
B37: 30 | C37: A058 | D37: RIBADENEIRA ARTURO | E37: C175 | F37: CLAW | H37: 160.8 | Q37: 160.8
B38: 31 | C38: A130 | D38: MALO JAIME | E38: C234 | F38: EL PADRINO | G38: 160 | Q38: 160
B39: 32 | C39: A058 | D39: RIBADENEIRA ARTURO | E39: C174 | F39: ZT SATFFANTDU | J39: 159.6 | Q39: 159.6
B40: 33 | C40: A081 | D40: KOPPEL OSWALDO | E40: C341 | F40: TENGRI | H40: 152.76 | Q40: 152.76
B41: 34 | C41: A081 | D41: KOPPEL OSWALDO | E41: C282 | F41: MAGIC MENES | G41: 64.4 | J41: 86.4 | Q41: 150.8
B42: 35 | C42: A059 | D42: ALMEIDA AYALA HECTOR | E42: C286 | F42: NEGRO EG | L42: 148.5 | Q42: =SUM(G42:P42) -> 148.5
B43: 36 | C43: A021 | D43: ALVEAR JUAN CARLOS | E43: C283 | F43: MAGIC ONE | M43: 145.476 | Q43: 145.476
B44: 37 | C44: A092 | D44: VINTIMILLA PABLO | E44: C074 | F44: WISKY | O44: 144.72 | Q44: 144.72
B45: 38 | C45: A177 | D45: RAMIREZ FABRICIO | E45: C206 | F45: AS GITANA | I45: 72.76 | K45: 71.298 | Q45: 144.058
B46: 39 | C46: A033 | D46: SERRANO ARMANDO JOSE | E46: C365 | F46: AS CHAGRA | P46: 139.36 | Q46: 139.36
B47: 40 | C47: A056 | D47: MORILLO MAURICIO | E47: C094 | F47: MISTERIO | H47: 120.6 | Q47: 120.6
B48: 41 | C48: J100 | D48: HURTADO HECTOR | E48: C074 | F48: WISKY | N48: 120 | Q48: 120
B49: 42 | C49: A130 | D49: MALO JAIME | E49: C393 | F49: JASPER | N49: 120 | Q49: 120
B50: 43 | C50: A089 | D50: ORTIZ FERNANDO | E50: C210 | F50: CHUQUIRAGUA | K50: 115.102 | Q50: 115.102
B51: 44 | C51: A172 | D51: BURBANO VILLAVICENCIO | E51: C140 | F51: CS SADIQ | H51: 112.56 | Q51: 112.56
B52: 45 | C52: A202 | D52: ALLAICO JOSE EMILIO | E52: C004 | F52: TEQUILA | G52: 106.4 | Q52: 106.4
B53: 46 | C53: A130 | D53: MALO JAIME | E53: C392 | F53: MARISCAL | J53: 96 | Q53: 96
B54: 47 | C54: A143 | D54: LUGMAÑA JUAN CARLOS | E54: C391 | F54: KALAHARI | J54: 91.2 | Q54: 91.2
B55: 48 | C55: A176 | D55: ESCOBAR LUIS | E55: C407 | F55: DORO | L55: 90 | Q55: 90
B56: 49 | C56: A204 | D56: PLUAS JUNIOR | E56: C408 | F56: GEMA DC | N56: 90 | Q56: 90
B57: 50 | C57: A026 | D57: LETORT MENA JOSE | E57: C079 | F57: SHAMIR SOLIN | M57: 87.8 | Q57: 87.8
B58: 51 | C58: A125 | D58: FALCONI FRANCISCO | E58: C165 | F58: DIAMANTE | P58: 86.8 | Q58: 86.8
B59: 52 | C59: A021 | D59: ALVEAR JUAN CARLOS | E59: C387 | F59: AGUARDIENTICO | P59: 86.8 | Q59: 86.8
B60: 53 | C60: A033 | D60: SERRANO ARMANDO JOSE | E60: C357 | F60: MD YALA | I60: 85.6 | Q60: 85.6
B61: 54 | C61: A192 | D61: LOZADA JOSE ARMANDO | E61: C414 | F61: GH PSHYRO | N61: 85.5 | Q61: 85.5
B62: 55 | C62: A056 | D62: MORILLO MAURICIO | E62: C089 | F62: GR COMPADRE | K62: 83.88 | Q62: 83.88
B63: 56 | C63: A186 | D63: DIAZ KOLICH DANITZA | E63: C240 | F63: KALIFA | P63: 82.46 | Q63: 82.46
B64: 57 | C64: A185 | D64: BURBANO SERRANO JAIME ROLANDO | E64: C286 | F64: NEGRO EG | J64: 81.6 | Q64: 81.6
B65: 58 | C65: A201 | D65: ULLOA GORDON FERNANDO | E65: C238 | F65: CALEÑA CMB | I65: 81.32 | Q65: 81.32
B66: 59 | C66: A207 | D66: CASTRO TRAJANO | E66: C412 | F66: BRISA | N66: 81 | Q66: 81
B67: 60 | C67: A055 | D67: WEEMAELS NATHALIE | E67: C360 | F67: RO EVITA | O67: 80.4 | Q67: 80.4
B68: 61 | C68: A023 | D68: SERRANO JUAN CARLOS | E68: C427 | F68: FLACA | M68: 79.02 | Q68: 79.02
B69: 62 | C69: A056 | D69: MORILLO MAURICIO | E69: C386 | F69: LUCKY | P69: 78.12 | Q69: 78.12
B70: 63 | C70: A202 | D70: SORIA JUAN MANUEL | E70: C307 | F70: TABATHA | J70: 76.8 | Q70: 76.8
B71: 64 | C71: A059 | D71: ALMEIDA AYALA HECTOR | E71: C114 | F71: KAFIR HA | O71: 76.38 | Q71: 76.38
B72: 65 | C72: A201 | D72: ULLOA GORDON FERNANDO | E72: C119 | F72: LLUVIA CMB | G72: 61.18 | Q72: 61.18
B73: 66 | C73: A079 | D73: CUSME EDISON | E73: C400 | F73: CM MAGNUM ROSE | G73: 57.96 | Q73: 57.96
B74: 67 | C74: A046 | D74: NOBOA MAURICIO | E74: C366 | F74: MAGO GH | G74: 54.74 | Q74: =SUM(G74:P74) -> 54.74
B75: 68 | Q75: =SUM(G75:P75) -> 0
B76: 69 | Q76: 0
B77: 70 | Q77: 0
B78: 71 | Q78: 0
B79: 72 | Q79: 0
B80: 73 | Q80: 0
B81: 74 | Q81: 0
B82: 75 | Q82: 0
B83: 76 | Q83: 0
B84: 77 | Q84: 0
B85: 78 | Q85: 0
B86: 79 | Q86: 0
B87: 80 | Q87: 0
B88: 81 | Q88: 0
B89: 82 | Q89: 0
B90: 83 | Q90: 0
B91: 84 | Q91: 0
B92: 85 | Q92: 0
B93: 86 | Q93: 0
B94: 87 | Q94: 0
B95: 88 | Q95: 0
B96: 89 | Q96: 0
B97: 90 | Q97: 0
B98: 91 | Q98: 0
B99: 92 | Q99: 0
B100: 93 | Q100: 0
B101: 94 | Q101: 0
B102: 95 | Q102: 0
B103: 96 | Q103: 0
B104: 97 | Q104: 0
B105: 98 | Q105: 0
B106: 99 | Q106: 0
B107: 100 | Q107: 0
B108: 101 | Q108: 0
B109: 102 | Q109: 0
B110: 103 | Q110: 0
B111: 104 | Q111: 0
B112: 105 | Q112: 0
B113: 106 | Q113: 0
B114: 107 | Q114: 0
B115: 108 | Q115: 0
B116: 109 | Q116: 0
B117: 110 | Q117: 0
B118: 111 | Q118: 0
B119: 112 | Q119: 0
B120: 113 | Q120: 0
B121: 114 | Q121: 0
B122: 115 | Q122: 0
B123: 116 | Q123: 0
B124: 117 | Q124: 0
B125: 118 | Q125: 0
B126: 119 | Q126: 0
B127: 120 | Q127: 0
B128: 121 | Q128: 0
B129: 122 | Q129: 0
B130: 123 | Q130: 0
B131: 124 | Q131: 0
B132: 125 | Q132: 0
B133: 126 | Q133: 0
B134: 127 | Q134: 0
B135: 128 | Q135: 0
B136: 129 | Q136: 0
B137: 130 | Q137: =SUM(G137:P137) -> 0
B138: 131 | Q138: 0
B139: 132 | Q139: 0
B140: 133 | Q140: 0
B141: 134 | Q141: 0
B142: 135 | Q142: 0
B143: 136 | Q143: 0
B144: 137 | Q144: 0
B145: 138 | Q145: 0
N165: =IF(L165>=60,"CLASIFICADO A 60 Km LIBRE y 80 Km NOVICIO",IF(L165>=40,"CLASIFICADO A 40 Km LIBRE y 60 Km NOVICIO","")) -> 

Sheet BINOMIOS LIVIANOS
B2: PUNTAJE ACUMULADO
B3: CATEGORÍA BINOMIOS LIVIANOS
B5: BINOMIOS LIVIANOS | G5: PUNTAJES
G6: 2014
C7: CODIGO | D7: JINETE | E7: CODIGO | F7: CABALLO | G7: I CHONE | H7: II CHONE | I7: III CHONE | J7: IV CHONE | K7: V CHONE | L7: VI CHONE | M7: VII CHONE | N7: VIII CHONE | O7: IX CHONE | P7: X CHONE | Q7: ACUMULADO
B8: 1 | C8: J047 | D8: LETORT DUEÑAS JOSE IGNACIO | E8: C154 | F8: SHAKIRA | I8: 161.5 | K8: 163.1 | O8: 160.8 | P8: 174.2 | Q8: =SUM(I8:P8) -> 659.6
B9: 2 | C9: A097 | D9: LETORT DUEÑAS BERNARDA | E9: C046 | F9: AMARETO | H9: 144.72 | M9: 87.8 | O9: 144.72 | P9: 165.49 | Q9: =SUM(G9:P9) -> 542.73
B10: 3 | C10: J034 | D10: ANDRADE JOSE DANIEL | E10: C134 | F10: JUPITER | H10: 160.8 | L10: 165 | M10: 161.64 | Q10: 487.44
B11: 4 | C11: J008 | D11: GOMEZ ALEXANDER | E11: C148 | F11: FUERTE | J11: 228 | K11: 231.629 | Q11: 459.629
B12: 5 | C12: J013 | D12: MORILLO SERGIO | E12: C072 | F12: QUITA PENAS | I12: 170 | K12: 243.82 | Q12: 413.82
B13: 6 | C13: J034 | D13: ANDRADE JOSE DANIEL | E13: C398 | F13: OM EL FIRST CHANCE | G13: 160 | I13: 240 | Q13: 400
B14: 7 | C14: J057 | D14: GUARDERAS JOSE GABRIEL | E14: C147 | F14: CAMARON | H14: 101.304 | K14: 154.945 | O14: 76.38 | Q14: 332.629
B15: 8 | C15: J055 | D15: LOYOLA CLAUDIA MARIA | E15: C197 | F15: PATACON | G15: 152 | J15: 168 | Q15: 320
B16: 9 | C16: J100 | D16: MASAPANTA KEVIN | E16: C261 | F16: GRINGO | K16: 163.1 | O16: 136.68 | Q16: 299.78
B17: 10 | C17: J091 | D17: BERREZUETA DELGADO PABLO SANTIAGO | E17: C130 | F17: ESPIRITU DEL ECUADOR | G17: 112 | I17: 170 | Q17: 282
B18: 11 | C18: I003 | D18: JARAMILLO BENITO JOSE | E18: C029 | F18: MILONGA | H18: 112.56 | K18: 163.1 | Q18: 275.66
B19: 12 | C19: J059 | D19: DUBACH CAROLINA | E19: C174 | F19: ZT SATFANTDU | H19: 112.56 | M19: 145.476 | Q19: 258.036
B20: 13 | C20: J034 | D20: ANDRADE JOSE DANIEL | E20: C413 | F20: SOLOANDA | N20: 90 | O20: 160.8 | Q20: 250.8
B21: 14 | C21: J031 | D21: RIBADENEIRA SOFIA | E21: C174 | F21: ZT SATFFANTDU | P21: 241.6 | Q21: 241.6
B22: 39 | C22: J087 | D22: MALO TORAL DAVID | E22: C175 | F22: CLAW | J22: 240 | Q22: 240
B23: 15 | C23: J021 | D23: CORNEJO BURNEO MANUEL | E23: C135 | F23: CARAGUAY | M23: 83.41 | O23: 152.76 | Q23: 236.17
B24: 16 | C24: M042 | D24: TORRES UGALDE RAFAEL ESTEBAN | E24: C403 | F24: NEVADA | G24: 61.18 | J24: 86.4 | N24: 85.5 | Q24: 233.08
B25: 17 | C25: J063 | D25: GONZALEZ BERNARDA | E25: C232 | F25: ASRAEL | I25: 228 | Q25: 228
B26: 18 | C26: J063 | D26: GONZALEZ BERNARDA | E26: C096 | F26: AR FAISAN | K26: 219.438 | Q26: 219.438
B27: 19 | C27: J079 | D27: JARAMILLO MANUELA | E27: C019 | F27: NICOLAS | H27: 136.68 | M27: 79.02 | Q27: 215.7
B28: 20 | C28: M039 | D28: TORRES GIORDANO ALEJANDRO | E28: C398 | F28: FRANCISCO | J28: 91.2 | N28: 90 | Q28: 181.2
B29: 21 | C29: M037 | D29: MARIN CESAR JAVIER | E29: C409 | F29: JOYA | L29: 90 | N29: 90 | Q29: 180
B30: 22 | C30: J096 | D30: LOYOLA TEODORO ANDRES | E30: C278 | F30: JUGUETE | J30: 168 | Q30: 168
B31: 23 | C31: J063 | D31: GONZALEZ BERNARDA | E31: C004 | F31: TEQUILA | L31: 165 | Q31: 165
B32: 24 | C32: J079 | D32: JARAMILLO MANUELA | E32: C404 | F32: SALMA | K32: 79.686 | P32: 82.46 | Q32: 162.146
B33: 25 | C33: J059 | D33: DUBACH CAROLINA | E33: C096 | F33: AR FAISAN | I33: 161.5 | Q33: 161.5
B34: 26 | C34: M013 | D34: JARAMILLO BENITO | E34: C367 | F34: NICOLAS | O34: 160.8 | Q34: 160.8
B35: 27 | C35: J019 | D35: DARQUEA RICARDO | E35: C143 | F35: ALI | K35: 154.945 | Q35: 154.945
B36: 28 | C36: J043 | D36: MORENO DANIEL | E36: C261 | F36: GRINGO | M36: 153.558 | Q36: 153.558
B37: 38 | C37: J087 | D37: MALO TORAL DAVID | E37: C234 | F37: EL PADRINO | H37: 152.76 | Q37: 152.76
B38: 29 | C38: J020 | D38: SERRANO FELIPE | E38: C143 | F38: ALI | M38: 137.394 | Q38: 137.394
B39: 30 | C39: J021 | D39: CORNEJO BURNEO MANUEL | E39: C189 | F39: HAAKIR | H39: 120.6 | Q39: 120.6
B40: 31 | C40: J059 | D40: DUBACH CAROLINA | E40: C361 | F40: ANGOSTURA FRODO | O40: 120.6 | Q40: 120.6
B41: 32 | C41: J100 | D41: HURTADO HECTOR | E41: C074 | F41: WISKY | M41: 120 | Q41: =SUM(G41:P41) -> 120
B42: 33 | C42: J099 | D42: RODITTI CARVAJAL CRISTORO | E42: C337 | F42: CAPORAL | H42: 106.932 | Q42: 106.932
B43: 34 | C43: J063 | D43: GONZALEZ BERNARDA | E43: C333 | F43: KADIN | G43: 106.4 | Q43: 106.4
B44: 35 | C44: J059 | D44: DUBACH CAROLINA | E44: C390 | F44: MIDAS | J44: 96 | Q44: 96
B45: 36 | C45: J098 | D45: MORENO PAULINA | E45: C394 | F45: POLACO | J45: 96 | Q45: 96
B46: 37 | C46: J099 | D46: DARQUEA ANA MARIA | E46: C384 | F46: GALAN | J46: 91.2 | Q46: 91.2
B47: 40 | C47: J108 | D47: DAVALOS JOAQUINA | E47: C175 | F47: CLAW | M47: 87.8 | Q47: 87.8
B48: 41 | C48: I003 | D48: JARAMILLO BENITO JOSE | E48: C237 | F48: CHULPI | M48: 87.8 | Q48: 87.8
B49: 42 | C49: M040 | D49: MORABOWEN MOSQUERA CESAR | E49: C238 | F49: CALEÑA CMB | P49: 86.8 | Q49: 86.8
B50: 43 | C50: J021 | D50: CORNEJO MANUEL | E50: C371 | F50: FLACA | P50: 86.8 | Q50: 86.8
B51: 44 | C51: M037 | D51: LOPEZ JUAN RAFAEL | E51: C397 | F51: RAYO | N51: 85.5 | Q51: 85.5
B52: 45 | C52: J101 | D52: PALACIOS GUIDO | E52: C418 | F52: COCHA | N52: 85.5 | Q52: 85.5
B53: 46 | C53: J109 | D53: DARQUEA ANA MARIA | E53: C134 | F53: JUPITER | K53: 83.88 | Q53: 83.88
B54: 47 | C54: M029 | D54: JIJON SOFIA | E54: C174 | F54: ZT SATFANTDU | K54: 83.88 | Q54: 83.88
B55: 48 | C55: M036 | D55: MOSCOSO JUAN PABLO | E55: C395 | F55: JUVENTINO | N55: 81 | Q55: 81
B56: 49 | C56: M012 | D56: MAZAPANTA KEVIN | E56: C372 | F56: NABU | O56: 80.4 | Q56: 80.4
B57: 50 | C57: M022 | D57: MORABOWEN MOSQUERA CESAR | E57: C399 | F57: CALENA CMB | K57: 79.686 | Q57: 79.686
B58: 51 | C58: J098 | D58: SALTIVERI MARIA JESUS | E58: C337 | F58: CAPORAL | P58: 78.12 | Q58: 78.12
B59: 52 | C59: M036 | D59: MALO TOMAS | E59: C396 | F59: TUMBA HOMBRES | G59: 64.4 | Q59: 64.4
B60: 53 | C60: J091 | D60: RODITTI CRISTOFORO | E60: C240 | F60: KALIFA | G60: 64.4 | Q60: 64.4
B61: 54 | C61: J101 | D61: GRANIZO GARNADA FABIANA | E61: C334 | F61: CAPORAL | G61: 61.18 | Q61: 61.18
B62: 55 | C62: J102 | D62: SALTIVERI MARIA JESUS | E62: C243 | F62: DUBAI | G62: 57.96 | Q62: 57.96
B63: 56 | C63: J088 | D63: SIMON NICOLAS | E63: C238 | F63: CALEÑA CMB | G63: 54.74 | Q63: 54.74
B64: 57 | C64: J096 | D64: HURTADO HECTOR | E64: C393 | F64: ABUDAVI | G64: 51.52 | Q64: 51.52
B65: 58 | Q65: =SUM(G65:P65) -> 0
B66: 59 | Q66: 0
B67: 60 | Q67: 0
B68: 61 | Q68: 0
B69: 62 | Q69: 0
B70: 63 | Q70: 0
B71: 64 | Q71: 0
B72: 65 | Q72: 0
B73: 66 | Q73: 0
B74: 67 | Q74: 0
B75: 68 | Q75: 0
B76: 69 | Q76: 0
B77: 70 | Q77: 0
B78: 71 | Q78: 0
B79: 72 | Q79: 0
B80: 73 | Q80: 0
B81: 74 | Q81: =SUM(G81:P81) -> 0
B82: 75 | Q82: 0
B83: 76 | Q83: 0
B84: 77 | Q84: 0
B85: 78 | Q85: 0
B86: 79 | Q86: 0
B87: 80 | Q87: 0
B88: 81 | Q88: 0
B89: 82 | Q89: 0
B90: 83 | Q90: 0
B91: 84 | Q91: 0
B92: 85 | Q92: 0
B93: 86 | Q93: 0
B94: 87 | Q94: 0
B95: 88 | Q95: 0
B96: 89 | Q96: 0
B97: 90 | Q97: 0
B98: 91 | Q98: 0
B99: 92 | Q99: 0
B100: 93 | Q100: 0
B101: 94 | Q101: 0
B102: 95 | Q102: 0
B103: 96 | Q103: 0
B104: 97 | Q104: 0
B105: 98 | Q105: 0
B106: 99 | Q106: 0
B107: 100 | Q107: 0
B108: 101 | Q108: 0
B109: 102 | Q109: 0
B110: 103 | Q110: 0
B111: 104 | Q111: 0
B112: 105 | Q112: 0
B113: 106 | Q113: 0
B114: 107 | Q114: 0
B115: 108 | Q115: 0
B116: 109 | Q116: 0
B117: 110 | Q117: 0
B118: 111 | Q118: 0
B119: 112 | Q119: 0
B120: 113 | Q120: =SUM(G120:P120) -> 0
B121: 114 | Q121: =SUM(G121:P121) -> 0
B122: 115 | Q122: 0
B123: 116 | Q123: 0
B124: 117 | Q124: 0
B125: 118 | Q125: 0
B126: 119 | Q126: 0
B127: 120 | Q127: 0
B128: 121 | Q128: 0
B129: 122 | Q129: 0
B130: 123 | Q130: 0
B131: 124 | Q131: 0
B132: 125 | Q132: 0
B133: 126 | Q133: 0
B134: 127 | Q134: 0
B135: 128 | Q135: 0
B136: 129 | Q136: 0
B137: 130 | Q137: 0
B138: 131 | Q138: 0
B139: 132 | Q139: 0
B140: 133 | Q140: 0
B141: 134 | Q141: 0
B142: 135 | Q142: 0
B143: 136 | Q143: 0
B144: 137 | Q144: 0
B145: 138 | Q145: 0
N165: =IF(L165>=60,"CLASIFICADO A 60 Km LIBRE y 80 Km NOVICIO",IF(L165>=40,"CLASIFICADO A 40 Km LIBRE y 60 Km NOVICIO","")) -> 
